Cogmind - Beta 16 @@@ ROGUE MODE // 2025.10.29 @ 18:01:39 Player: Anting Result: Fortifying 0b10! Performance ------------- Evolutions (9) 4500 Regions Visited (39) 7800 Robots Destroyed (556) 2780 Value Destroyed (33856) 33856 Prototype IDs (123) 2460 Alien Tech Used (4) 800 Bonus (31131) 31131 TOTAL SCORE: 83327 Bonus ------- High Alert Combat Kills 6511 Follower Combat Kills 1651 Entered Garrisons 800 Met Imprinter 300 Acquired ECA 300 Met Zhirov 300 Met Warlord at Base 500 MAIN.C Attacked Warlord 500 Warlord Defense Kills 1838 Met Warlord at Research 2000 Invited to Help at Command 2000 Destroyed MAIN.C Guards 500 Met MAIN.C 5000 Destroyed MAIN.C Shell 5000 Met Warlord at Command 2000 Win 3000 Friendly Fire -1069 Cogmind --------- Core Integrity 43/1600 Matter 262/300 Energy 700/700 System Corruption 10% Temperature Warm (149) Movement Walking (90) Location By MAIN.C's Side Parts ------- > --- POWER (2) -------- Vortex Chain Reactor > --- PROPULSION (8) --- Experimental Biometal Leg Experimental Biometal Leg Experimental Biometal Leg Experimental Biometal Leg Experimental Biometal Leg Experimental Biometal Leg Experimental Biometal Leg Experimental Biometal Leg > --- UTILITY (11) ----- Concept Phasing Heat Sink Experimental Cooling System Concept Thermoelectric Network Concept Antigrav Storage Unit Experimental Core Analyzer Advanced Weapon Cycler Experimental Core Shielding Centrium Light Armor Plating Centrium Medium Armor Plating Concept RG22 Armor Concept Antimissile System > --- WEAPON (4) ------- Enhanced Quantum Rifle Heavy Quantum Rifle Improved Matter Neutralizer Enhanced Nova Cannon > --- INVENTORY (25) --- Experimental Antimatter Reactor Concept Zero-point Core Experimental Biometal Leg Concept Chromion Battery (800) Concept NT7 Matterbank (750) Experimental Kinecellerator Concept Cloak Mesh Centrium Medium Armor Plating Centrium Medium Armor Plating Concept RG22 Armor Concept Matter Streamer Transdimensional Reconstructor Gamma Rifle Phase Gun Helical Railgun Compact Mass Driver Heavy Hardcell Cannon Heavy Hardcell Cannon Enhanced Hardcell Cannon Compact Linear Accelerator Graviton Cannon Concept Tactical Fusion Warhead Peak State ------------ > --- POWER ------------ Concept Zero-point Core Concept Zero-point Core > --- PROPULSION ------- Combat Linear Gravjet Experimental Antigrav System Experimental Antigrav System Gravjet Array Gravjet Array Concept Gyrokinetic System > --- UTILITY ---------- Concept Phasing Heat Sink Concept Thermoelectric Network Concept Antigrav Storage Unit Concept Weapon Articulator Concept Core Analysis Suite Experimental Armor Integrity Analyzer Concept Reaction Jets Concept RG22 Armor Concept RG22 Armor Concept Antimissile System Experimental System Purifier > --- WEAPON ----------- Heavy Quantum Rifle Enhanced Nova Cannon Enhanced Nova Cannon Cooled Nova Cannon > --- INVENTORY -------- Experimental Antimatter Reactor Vortex Chain Reactor Vortex Chain Reactor Concept Thermoelectric Network Concept Chromion Battery Concept Chromion Battery Concept NT7 Matterbank Experimental Kinecellerator Concept Cloak Mesh Concept Matter Streamer Transdimensional Reconstructor Enhanced Quantum Rifle Heavy Quantum Rifle Heavy Quantum Rifle Heavy Quantum Rifle Enhanced Nova Cannon Enhanced Nova Cannon Heavy Hardcell Cannon Enhanced Hardcell Cannon Concept Tactical Fusion Warhead [Rating: 303] Favorites ----------- Power Fission Core Engine Light Deuterium Engine Power Core Fission Core Reactor Compact Particle Reactor Propulsion Light Treads Treads Light Treads Leg Aluminum Leg Hover Unit Cooled Gravmag System Flight Unit Improved Cesium-ion Thruster Utility Improved Heat Sink Device Improved Heat Sink Storage High-capacity Storage Unit Processor Advanced Signal Interpreter Hackware Improved Hacking Suite Protection Improved Medium Armor Plating Weapon Gatling Laser Energy Gun Gatling Laser Energy Cannon Particle Cannon Ballistic Gun Shotgun Ballistic Cannon Hypervelocity Gauss Cannon Launcher Long-range Missile Launcher Special Weapon RU-N14's Throwing Claymores v3 Slashing Weapon Power Sword Special Melee Weapon Improved Datajack Build | -11 -10 -10 -9 -9 -9 -8 -8 -8 -8 -7 -7 -7 -7 -6 -6 -6 -6 -6 -6 -5 -5 -5 -5 -5 -4 -4 -4 -4 -4 -4 -4 -3 -3 -3 -2 -2 -2 -1 -1 ------- Run | Yrd Mat Min Mat Min Exi Min Mat Gar Mat Fac Gar Fac Gar Fac Gar Fac Low Low Zio Pro Fac Upp Upp Zhi Pro Fac Was Fac Upp Upp War Pro Res Tes Res Qua Frg Acc Com Slots Evolved 18 | . . . 2 . . . 2 . . 2 . . . 2 . . . . . . 2 . . . . 2 . . . . . . 2 . 2 . . 2 . Power 1 | . . . . . . . . . . . . . . 1 . . . . . . . . . . . . . . . . . . . . . . . . . Propulsion 6 | . . . 1 . . . 1 . . . . . . . . . . . . . . . . . . 2 . . . . . . 1 . 1 . . . . Utility 9 | . . . 1 . . . 1 . . 2 . . . . . . . . . . 1 . . . . . . . . . . . 1 . 1 . . 2 . Weapon 2 | . . . . . . . . . . . . . . 1 . . . . . . 1 . . . . . . . . . . . . . . . . . . Parts Attached 440 | 7 8 . 22 1 . 5 19 16 12 2 16 3 38 3 15 10 10 3 3 3 9 6 8 3 7 28 1 11 4 1 19 2 2 7 20 4 52 9 51 Power 41 | 1 1 . 3 . . . 2 2 2 . 3 . 1 1 2 1 1 . . . . . 1 . 2 3 . 2 1 . 2 . 1 1 . . 6 . 2 Engine 17 | 1 1 . 3 . . . 1 1 1 . 2 . . . 2 1 . . . . . . 1 . 1 1 . 1 . . . . . . . . . . . Core 11 | . . . . . . . 1 1 1 . 1 . . . . . 1 . . . . . . . . . . . 1 . 1 . . . . . 4 . . Reactor 13 | . . . . . . . . . . . . . 1 1 . . . . . . . . . . 1 2 . 1 . . 1 . 1 1 . . 2 . 2 Propulsion 115 | 2 2 . 11 . . 2 10 4 7 . 5 2 13 . 3 . . 1 . 1 . 1 1 1 . 9 . 3 2 . 2 . . 1 6 1 7 2 16 Treads 58 | . 2 . 10 . . 2 9 4 7 . 5 1 8 . 3 . . 1 . 1 . 1 1 . . 3 . . . . . . . . . . . . . Leg 22 | 2 . . . . . . . . . . . . 5 . . . . . . . . . . . . . . . . . . . . . . . . . 15 Wheel . | . . . . . . . . . . . . . . . . . . . . . . . . . . . . . . . . . . . . . . . . Hover 33 | . . . . . . . 1 . . . . . . . . . . . . . . . . 1 . 6 . 3 2 . 2 . . 1 6 1 7 2 1 Flight 2 | . . . 1 . . . . . . . . 1 . . . . . . . . . . . . . . . . . . . . . . . . . . . Utility 168 | 2 2 . 3 . . 1 4 3 3 2 5 1 15 2 9 7 4 1 . 1 8 1 5 1 5 10 1 4 1 1 4 1 1 1 10 3 23 3 20 Device 85 | 1 1 . 2 . . 1 2 2 . 2 2 . 9 . 3 3 2 1 . . 4 1 4 . 4 3 1 . 1 . 2 . . . 5 3 12 1 13 Storage 8 | 1 1 . . . . . . . . . . . . . . 2 . . . . . . . . . 1 . . . . 1 . . . 1 . 1 . . Processor 15 | . . . . . . . . . . . . . . . . 1 1 . . 1 . . . . . 2 . . . 1 1 . . 1 1 . 3 . 3 Hackware 14 | . . . . . . . . . . . . . . 2 . . . . . . . . . . . 3 . 3 . . . 1 1 . 3 . . 1 . Protection 46 | . . . 1 . . . 2 1 3 . 3 1 6 . 6 1 1 . . . 4 . 1 1 1 1 . 1 . . . . . . . . 7 1 4 Artifact . | . . . . . . . . . . . . . . . . . . . . . . . . . . . . . . . . . . . . . . . . Weapon 116 | 2 3 . 5 1 . 2 3 7 . . 3 . 9 . 1 2 5 1 3 1 1 4 1 1 . 6 . 2 . . 11 1 . 4 4 . 16 4 13 Energy Gun 32 | . . . . . . . . 4 . . 3 . 7 . 1 1 1 . 1 . . 1 . 1 . . . . . . . . . 1 . . 4 2 5 Energy Cannon 29 | . 2 . . . . . 2 1 . . . . . . . . 1 . . 1 . . . . . 1 . 1 . . 3 1 . 2 1 . 4 2 7 Ballistic Gun 23 | 2 1 . 4 . . 2 . 2 . . . . 1 . . 1 2 . . . 1 2 . . . . . . . . 2 . . . 2 . 1 . . Ballistic Cannon 10 | . . . . . . . . . . . . . . . . . . 1 . . . . . . . 3 . . . . 2 . . . . . 3 . 1 Launcher 10 | . . . 1 1 . . 1 . . . . . 1 . . . 1 . . . . 1 . . . . . . . . . . . 1 . . 3 . . Special Weapon 6 | . . . . . . . . . . . . . . . . . . . 2 . . . 1 . . . . . . . 3 . . . . . . . . Impact Weapon . | . . . . . . . . . . . . . . . . . . . . . . . . . . . . . . . . . . . . . . . . Slashing Weapon 5 | . . . . . . . . . . . . . . . . . . . . . . . . . . 1 . 1 . . 1 . . . 1 . 1 . . Piercing Weapon . | . . . . . . . . . . . . . . . . . . . . . . . . . . . . . . . . . . . . . . . . Special Melee Weapon 1 | . . . . . . . . . . . . . . . . . . . . . . . . . . 1 . . . . . . . . . . . . . Unidentified Prototypes 45 | . . . 1 . . . 1 . . . . 1 1 1 . . . . 1 . . 1 . 3 . . . 1 . . 7 . 1 4 4 . 5 . 13 Corrupted Parts 10 | . . . . . . . . . . . . . . . . . . . . . . . . . . . . . . . . . . . . . 1 . 9 System Corruption 46 | . . . . . . . . . . . . . . . . . . . . . . . . . . . . . . . . . . . . . 11 . 35 Parts Lost 153 | . 4 . 2 . . 1 3 12 10 . 4 2 13 . 11 8 . 2 . . 1 2 1 . 6 2 1 9 . . . . . . . . 32 4 23 Power 19 | . 1 . 1 . . . 1 1 1 . . . . . 1 2 . . . . . 1 . . 1 1 1 3 . . . . . . . . 2 . 2 Propulsion 45 | . 2 . 1 . . . 1 5 5 . . 2 4 . 2 . . 1 . . . 1 1 . 1 . . 2 . . . . . . . . 8 2 7 Utility 45 | . 1 . . . . 1 1 2 4 . 2 . 5 . 5 3 . 1 . . . . . . 3 1 . 2 . . . . . . . . 9 . 5 Weapon 44 | . . . . . . . . 4 . . 2 . 4 . 3 3 . . . . 1 . . . 1 . . 2 . . . . . . . . 13 2 9 Highest Loss Streak 13 | . 2 . 1 . . 1 2 3 7 . 2 2 7 . 9 5 . 2 . . 1 1 1 . 4 1 1 7 . . . . . . . . 13 4 10 To Critical Strikes 2 | . . . . . . . . . . . . . 1 . . . . . . . . . . . . . . . . . . . . . . . . . 1 Average Backups 18 | 2 17 20 19 20 20 20 19 18 18 19 19 19 18 14 13 17 19 19 19 19 19 18 21 22 22 16 14 14 11 14 14 15 14 13 14 14 17 18 18 Power . | . . . . . . . 1 1 1 1 1 1 . . . 1 1 1 1 1 . . . 1 1 . . . . . 1 1 1 1 . . 1 1 1 Propulsion 4 | 1 5 7 7 8 8 7 7 5 4 5 7 6 5 3 3 2 2 1 1 1 1 1 1 2 4 3 2 3 2 3 3 3 2 3 4 4 2 2 . Utility 5 | . 1 3 4 5 5 5 5 6 6 5 5 5 6 6 5 3 4 3 3 3 5 7 7 8 7 7 7 4 2 3 3 3 3 3 3 5 8 11 7 Weapon 7 | . 9 10 7 7 7 7 6 5 6 7 6 7 6 5 4 9 10 11 12 12 10 10 10 9 8 4 4 4 5 5 6 7 6 5 3 3 3 1 6 Tool/Special . | . . . . . . . . . . . . . . . . . . . . . . . . . . . . . . . . . . . . . . . . Unused Backups 85 | . 3 . 3 . . . 3 . . 1 2 . 9 . 8 2 . 1 2 . 4 . 2 . . 8 1 1 . 1 3 . . . 3 1 10 . 17 Power 5 | . . . . . . . . . . . . . 1 . . . . . . . . . . . . . . . . . . . . . 1 1 1 . 1 Propulsion 14 | . . . . . . . 1 . . . . . 5 . 2 1 . . . . . . . . . 1 . . . . 2 . . . 1 . . . 1 Utility 29 | . 1 . . . . . 1 . . . . . 2 . 5 . . . . . 2 . . . . 3 1 1 . 1 . . . . . . 7 . 5 Weapon 35 | . 2 . 3 . . . 1 . . 1 2 . 1 . 1 1 . 1 2 . 1 . 2 . . 4 . . . . 1 . . . 1 . 2 . 9 Tool/Special 2 | . . . . . . . . . . . . . . . . . . . . . 1 . . . . . . . . . . . . . . . . . 1 Average Slot Usage (%) 87 | . 96 100 99 100 100 99 98 90 96 81 97 98 88 83 83 83 84 85 84 72 74 62 62 57 62 89 97 98 76 89 97 100 95 98 99 99 89 88 86 Engine 5 | . 13 14 10 11 11 11 1 . 2 7 2 . . . 3 6 6 6 6 6 4 5 9 11 7 8 3 4 . . 4 5 . . . . . . . Core 2 | . . . . . . . 7 7 6 . 4 7 3 . . . 5 6 6 6 5 3 . . . . . . 2 5 4 . . . . . 5 8 4 Reactor 1 | . . . . . . . . . . . . . 3 10 8 5 . . . . . . . . 2 1 5 4 . . . 5 8 8 8 8 2 . 1 Treads 16 | . 18 28 32 33 33 33 35 33 33 30 30 28 17 13 12 13 13 12 13 12 11 11 10 11 10 6 . . . . . . . . . . . . . Leg 1 | . 8 . . . . . . . . . . . 9 . . . . . . . . . . . . . . . . . . . . . . . . . 9 Hover 6 | . . . . . . . . . . . . . . . . . . . . . . . . . . 18 31 30 26 31 31 31 33 33 34 34 32 27 14 Device 15 | . 12 14 15 11 11 10 17 16 17 5 22 23 19 20 19 17 20 19 20 20 16 17 16 14 15 10 10 9 7 9 9 10 9 9 6 8 15 23 19 Storage 7 | . 14 14 11 11 11 11 9 9 9 7 7 7 7 6 6 6 6 6 6 6 5 5 5 5 5 4 5 5 5 5 5 5 4 4 4 4 4 4 4 Processor 2 | . . . . . . . . . . . . . . . . 3 6 6 6 6 5 5 5 5 5 5 5 4 . . . . . 3 7 8 6 4 5 Hackware 2 | . . . . . . . . . . . . . . . . . . . . . . . . . . 9 15 15 15 15 15 15 14 14 15 13 4 2 . Protection 6 | . . . 6 11 11 11 9 5 8 15 12 15 10 13 10 8 6 6 6 6 10 5 5 5 4 1 . . 2 5 5 5 4 4 4 3 2 5 11 Energy Gun 6 | . . . . . . . . 11 18 15 14 15 13 20 19 13 11 12 12 5 5 4 4 1 4 . . . . . . . . . . . 1 6 5 Energy Cannon 3 | . 12 14 . . . . 15 3 . . . . . . . . . 5 3 . 3 . . . . 4 5 3 . . . 4 4 4 4 4 3 4 9 Ballistic Gun 5 | . 15 14 21 20 22 22 2 1 . . . . . . . 5 5 . . . 1 . . . . 6 5 3 . . 4 10 9 8 8 8 2 . . Peak Build Rating 303 | 7 12 12 19 19 19 20 27 40 40 36 46 50 84 96 100 93 83 83 89 91 111 107 108 107 111 111 109 118 106 109 129 125 142 160 184 188 282 302 303 Average Rating 83 | 4 10 12 17 18 19 18 25 34 35 29 40 45 51 93 93 82 79 80 80 88 101 104 105 82 106 102 106 110 95 108 119 124 137 143 179 184 203 290 272 On Entrance 85 | . 7 12 12 19 19 19 19 27 38 26 36 46 46 84 95 93 72 80 79 89 91 88 101 105 107 60 107 107 80 106 109 121 125 138 148 184 184 252 284 Avg Prop Armor Cover (%) 6 | . . . . . . . . . . . . . 9 . . . . . . . . . . . . . . . . . . . . . . . . 2 2 Naked Turns . | . . . . . . . . . . . . . . . . . . . . . . . . . . . . . . . . . . . . . . . . Heaviest Build 150 | 13 54 51 59 59 59 59 62 73 61 63 76 76 87 104 104 124 124 124 124 116 143 143 138 138 150 150 67 72 66 66 79 72 82 82 85 86 109 119 144 Greatest Support 224 | 20 40 40 60 60 60 60 86 92 87 80 80 80 150 150 150 150 150 150 150 150 150 150 150 145 145 151 66 82 72 72 72 72 108 85 98 130 130 126 224 Greatest Overweight (x) 5 | 3 5 1 1 . . . . 1 3 . . 1 1 . 1 . . . . 1 . . . 1 1 2 1 . . . 1 . . 1 . . 1 1 4 Average Overweight (x) . | . 1 1 . . . . . . . . . . . . . . . . . . . . . . . . . . . . . . . . . . . . . Largest Inventory Capacity 25 | 8 20 20 20 20 20 20 20 20 20 20 20 20 20 20 20 25 25 25 25 25 25 25 25 25 25 25 15 15 15 15 15 15 15 15 15 15 25 25 25 Average Capacity 21 | 7 19 20 20 20 20 20 20 20 20 20 20 20 20 20 20 23 25 25 25 25 25 25 25 25 25 18 15 15 15 15 15 15 15 15 15 15 19 25 25 Most Carried 25 | 3 20 20 20 20 20 20 20 20 20 20 20 20 20 20 20 25 25 25 25 25 25 25 25 25 25 25 15 15 14 15 15 15 15 15 15 15 25 25 25 Average Carried 20 | 2 17 20 19 19 20 20 19 18 18 19 19 19 19 19 19 21 24 24 23 24 24 22 24 24 24 17 14 14 11 14 14 15 14 14 14 14 17 20 19 Final Capacity 25 | 8 20 20 20 20 20 20 20 20 20 20 20 20 20 20 20 25 25 25 25 25 25 25 25 25 25 15 15 15 15 15 15 15 15 15 15 15 25 25 25 Final Carried 25 | 3 20 20 20 20 20 20 20 17 18 20 20 19 20 20 20 24 25 23 25 25 25 23 23 25 25 14 15 14 10 15 15 15 14 14 15 15 22 18 24 Class Distribution -------------------- 33% | Scavenger-Tank 27% | Scavenger-Mutant 14% | Mutant 5% | Hacker-Skirmisher 3% | Hacker-Scout 3% | Hacker-Sprinter Dominant Class ---------------- Mutant | -10/Materials Mutant | -10/Mines Scavenger-Mutant | -9/Materials Scavenger-Mutant | -9/Mines Scavenger-Mutant | -9/Exiles Scavenger-Mutant | -8/Mines Scavenger-Mutant | -8/Materials Mutant | -8/Garrison Scavenger-Mutant | -8/Materials Scavenger-Mutant | -7/Factory Scavenger-Mutant | -7/Garrison Scavenger-Mutant | -7/Factory Scavenger-Mutant | -7/Garrison Scavenger-Tank | -6/Factory Scavenger-Tank | -6/Garrison Scavenger-Tank | -6/Factory Scavenger-Tank | -6/Lower Caves Scavenger-Tank | -6/Lower Caves Scavenger-Tank | -6/Zion Scavenger-Tank | -5/Proximity Caves Scavenger-Tank | -5/Factory Scavenger-Tank | -5/Upper Caves Scavenger-Tank | -5/Upper Caves Scavenger-Mutant | -5/Zhirov Tank | -4/Proximity Caves Hacker-Skirmisher | -4/Factory Hacker-Skirmisher | -4/Waste Hacker-Skirmisher | -4/Factory Hacker-Mutant | -4/Upper Caves Hacker-Mutant | -4/Upper Caves Hacker-Skirmisher | -4/Warlord Hacker-Skirmisher | -3/Proximity Caves Hacker-Sprinter | -3/Research Hacker-Scout | -3/Testing Hacker-Scout | -2/Research Hacker-Scout | -2/Quarantine Hacker-Sprinter | -2/Protoforge Hacker-Scout | -1/Access Scavenger-Tank | -1/Command Resources | -11 -10 -10 -9 -9 -9 -8 -8 -8 -8 -7 -7 -7 -7 -6 -6 -6 -6 -6 -6 -5 -5 -5 -5 -5 -4 -4 -4 -4 -4 -4 -4 -3 -3 -3 -2 -2 -2 -1 -1 ----------- Run | Yrd Mat Min Mat Min Exi Min Mat Gar Mat Fac Gar Fac Gar Fac Gar Fac Low Low Zio Pro Fac Upp Upp Zhi Pro Fac Was Fac Upp Upp War Pro Res Tes Res Qua Frg Acc Com Matter Collected 14404 | 269 492 20 905 130 . 400 421 663 157 20 155 30 646 . 446 140 474 175 34 228 292 357 332 80 225 587 377 426 82 146 360 28 30 69 480 40 2549 721 1418 Remotely 403 | . . . . . . . . . . . . . . . . . . . . . . . . . . . . . . . . . . . . . 121 282 . Salvage Created 25793 | 29 900 108 1366 158 . 582 1314 901 1267 74 1214 268 2439 . 2014 354 73 321 . 307 678 604 760 370 853 621 . 210 82 . 359 . 379 69 646 32 3394 663 2384 Parts 1207 | 2 48 8 91 9 . 23 82 50 54 3 51 8 91 . 82 16 4 6 . 11 38 19 19 11 39 36 . 12 5 . 7 . 29 7 19 2 174 35 116 Haulers Intercepted 18 | . 2 . 6 . . . 1 . 2 . . . . . . . . . . . . . . . . 2 . . . . . . 1 . 3 . . 1 . Recyclers Shooed 6 | . . . 3 . . . . . 1 . . . . . . . . . . . 1 . . . . . . 1 . . . . . . . . . . . Parts Field Recycled . | . . . . . . . . . . . . . . . . . . . . . . . . . . . . . . . . . . . . . . . . Retrieved Matter . | . . . . . . . . . . . . . . . . . . . . . . . . . . . . . . . . . . . . . . . . Parts Self-Destructed 97 | . . . . . . . . . . . . . . . . . 4 4 . 11 . 18 16 8 36 . . . . . . . . . . . . . . Prevented 8 | . . . . . . . . . . . . . . . . . . . . 2 . . . 2 2 . . . 2 . . . . . . . . . . Parts Restored 16 | . . . . . . . . . . . . . . . . . . . . . . . . . . . . . . . . . . . . . 14 2 . Faulty 16 | . . . . . . . . . . . . . . . . . . . . . . . . . . . . . . . . . . . . . 14 2 . Kills | -11 -10 -10 -9 -9 -9 -8 -8 -8 -8 -7 -7 -7 -7 -6 -6 -6 -6 -6 -6 -5 -5 -5 -5 -5 -4 -4 -4 -4 -4 -4 -4 -3 -3 -3 -2 -2 -2 -1 -1 ------- Run | Yrd Mat Min Mat Min Exi Min Mat Gar Mat Fac Gar Fac Gar Fac Gar Fac Low Low Zio Pro Fac Upp Upp Zhi Pro Fac Was Fac Upp Upp War Pro Res Tes Res Qua Frg Acc Com Combat Hostiles Destroyed 466 | . 17 3 30 7 . 13 25 33 22 1 23 5 33 . 32 11 3 7 . 7 13 13 17 . 19 12 . 3 . . 14 . 3 . . . 63 8 29 Melee 8 | . . . . . . . . . . . . . . . . . . . . . . . . . . . . . . . . . . . . . 8 . . Guns 234 | . 6 . 25 5 . 13 7 13 19 . 22 4 26 . 22 11 3 1 . 3 9 9 6 . 12 2 . . . . . . . . . . 4 3 9 Cannons 74 | . 10 3 1 . . . 15 4 . . . . 1 . . . . 2 . . . . . . . 4 . 3 . . 1 . . . . . 19 3 8 AOE 117 | . . . 4 2 . . 2 14 . . . . 4 . 9 . . 4 . 4 4 4 11 . 7 6 . . . . 12 . 3 . . . 17 2 8 Classes Destroyed 30 | 1 8 . 1 . . 1 2 1 . . 1 . . . 2 . . . . 1 . . 2 . . . . 1 . . 1 . . . . . 5 1 2 Worker 20 | . 2 . 2 . . . 3 . 3 . . . . . . . . . . . 2 . . . . 2 . . . . . . 2 . 1 . 1 . 2 Builder 15 | . 1 . . . . . 3 . 1 . . . . . . . . . . . 1 . . . . 2 . . . . . . 3 . . . 3 1 . Tunneler 5 | 1 1 . 1 . . 1 . . . . . . . . . . . . . . . . . . . 1 . . . . . . . . . . . . . Hauler 18 | . 2 . 6 . . . 1 . 2 . . . . . . . . . . . . . . . . 2 . . . . . . 1 . 3 . . 1 . Recycler 8 | . 1 1 1 . . . 1 . . . . . . . . . . . . . . . . . . . . 1 . . . . . . 2 . . 1 . Mechanic 1 | . . . . . . . . . . . . . . . . . . . . . . . . . . . . . . . . . . . . . 1 . . Operator 6 | . 1 . 3 . . . . . . . . . . . . . . . . . . . . . . . . . . . . . 1 1 . . . . . Drone 14 | . . . . . . . . . . . . . . . . . . . . 1 . . . . . . . . . . . . . . . . 9 . 4 Watcher 18 | . 3 . 3 . . . . . 1 . . . 1 . . . . . . . 2 . . . . 1 . 1 . . . . 3 1 . 1 . . 1 Swarmer 92 | . 5 3 13 3 . . 3 14 2 . 1 . . . 3 8 3 . . 4 4 5 3 . 8 5 . . . . 2 . 3 . . . . . . Cutter 7 | . . . . . . . . . . . . . . . . . . . . . . . . . . . . 3 . . . . . . . . . 4 . Saboteur 1 | . . . . . . . . . . . . . . . . . . . . . . . . . . . . . . . . . . . . . 1 . . Grunt 166 | . 12 . 9 4 . 12 13 12 10 . 10 4 16 . 13 2 . 7 . 2 3 6 9 . 5 3 . . . . 8 . . . . . 5 1 . Brawler 13 | . . . . . . 1 1 1 . . 2 . 2 . 1 . . . . . . . 2 . . . . . . . . . . . . . 3 . . Duelist 9 | . . . . . . . 1 2 1 . . . 1 . . . . . . . 1 . . . 3 . . . . . . . . . . . . . . Protector 3 | . . . . . . . . . . . . . . . 1 . . . . . . . . . . . . . . . 1 . . . . . . . 1 Researcher 1 | . . . . . . . . . . . . . . . . . . . . . . . . . . . . . . . . . . . . . 1 . . Sentry 55 | . . . 8 . . . 6 1 8 1 2 1 5 . 8 . . . . . 1 . 2 . 1 1 . . . . . . . . . . 10 . . Demolisher 1 | . . . . . . . . . . . . . . . 1 . . . . . . . . . . . . . . . . . . . . . . . . Specialist 4 | . . . . . . . . . . . 4 . . . . . . . . . . . . . . . . . . . . . . . . . . . . Hunter 19 | . . . . . . . 1 2 1 . 4 . 3 . 2 . . . . . . . 1 . . . . . . . 1 . . . . . 4 . . Programmer 47 | . . . . . . . . 1 . . 1 . 6 . 3 1 . . . . 4 2 . . 2 3 . . . . . . . . . . 21 2 1 Behemoth 2 | . . . . . . . . . . . . . . . . . . . . . . . . . . . . . . . 2 . . . . . . . . Enhanced Q-Series 18 | . . . . . . . . . . . . . . . . . . . . . . . . . . . . . . . . . . . . . . . 18 Decapitator 3 | . . . . . . . . . . . . . . . . . . . . . . . . . . . . . . . . . . . . . 3 . . Immortal 4 | . . . . . . . . . . . . . . . . . . . . . . . . . . . . . . . . . . . . . 4 . . Combat Programmer 1 | . . . . . . . . . . . . . . . . . . . . . . . . . . . . . . . . . . . . . . . 1 Alpha 7 2 | . . . . . . . . . . . . . . . . . . . . . . . . . . . . . . . . . . . . . 2 . . V-Series 1 | . . . . . . . . . . . . . . . . . . . . . . . . . . . . . . . . . . . . . 1 . . Decomposer 1 | . . . . . . . . . . . . . . . . . . . . . . 1 . . . . . . . . . . . . . . . . . Samaritan 4 | . . . . . . . . . . . . . . . . . . . . . . . 2 . . . . . 2 . . . . . . . . . . Tinkerer 2 | . . . . . . . . . . . . . . . . . . . . . . . 1 . . . . . . . . . . . . . 1 . . Surgeon 1 | . . . . . . . . . . . . . . . . . . . . . . . . . . . . . . . . . . . . . . . 1 Guerrilla 4 | . . . . . . . . . . . . . . . . . . . . . . . . . . . . . . . . . . . . . . . 4 Fireman 1 | . . . . . . . . . . . . . . . . . . . . . . . . . . . . . . . . . . . . . . 1 . Troll 1 | . . . . . . . . . . . . . . . . . . . . . . . . . . . . . . . . . . . . . . . 1 Best Kill Streak 11 | 1 3 3 8 3 . 5 5 9 11 1 3 3 5 . 8 6 3 4 . 4 4 5 6 . 8 9 . 4 . . 7 . 5 1 3 1 11 6 6 Combat Bots Only 10 | . 2 2 4 3 . 5 4 9 8 1 3 3 5 . 8 6 3 4 . 4 4 5 6 . 8 7 . 3 . . 7 . 3 . . . 10 6 5 Max Kills in Single Turn 7 | 1 2 1 3 1 . 1 4 3 2 1 2 1 2 . 3 2 2 2 . 2 4 4 3 . 4 3 . 1 1 . 7 . 2 1 1 1 3 2 4 Gunslinging 1 | . . . . . . . 1 1 . . 1 . . . . 1 1 . . . . . . . . . . . . . . . . . . . . . . Exploded 6 | . . . 3 1 . . 2 3 . . . . 2 . 3 . . 2 . 2 4 4 3 . 4 2 . . . . 6 . 2 . . . 3 2 4 Melee 1 | . . . . . . . . . . . . . . . . . . . . . . . . . . . . . . . . . . . . . 1 . . Uniques/NPCs Destroyed . | . . . . . . . . . . . . . . . . . . . . . . . . . . . . . . . . . . . . . . . . Combat | -11 -10 -10 -9 -9 -9 -8 -8 -8 -8 -7 -7 -7 -7 -6 -6 -6 -6 -6 -6 -5 -5 -5 -5 -5 -4 -4 -4 -4 -4 -4 -4 -3 -3 -3 -2 -2 -2 -1 -1 -------- Run | Yrd Mat Min Mat Min Exi Min Mat Gar Mat Fac Gar Fac Gar Fac Gar Fac Low Low Zio Pro Fac Upp Upp Zhi Pro Fac Was Fac Upp Upp War Pro Res Tes Res Qua Frg Acc Com Hostile Shots Fired 3200 | . 75 8 124 22 . 56 95 152 151 18 97 45 261 . 279 108 5 16 . 9 72 48 65 . 122 158 . 85 8 2 15 . 11 18 2 7 611 62 393 Missed 1034 | . 20 2 45 2 . 15 24 35 50 11 26 21 82 . 66 21 2 4 . 1 20 12 15 . 29 74 . 28 6 2 5 . 7 12 . 5 250 23 119 Intercepted 32 | . . . . . . . . . . . . . . . . . . . . . . . . . . . . . . . . . . . . . . . 32 Deflected 2 | . . . . . . . . . . . . . . . . . . . . . . . . . . . . . . . . . . . . . 2 . . Hits 2166 | . 55 6 79 20 . 41 71 117 101 7 71 24 179 . 213 87 3 12 . 8 52 36 50 . 93 84 . 57 2 . 10 . 4 6 2 2 361 39 274 Melee 50 | . . . . . . 1 . 7 2 . . . 3 . . . . . . . . . . . 10 . . 7 . . . . . . . . 9 8 3 Projectile 2116 | . 55 6 79 20 . 40 71 110 99 7 71 24 176 . 213 87 3 12 . 8 52 36 50 . 83 84 . 50 2 . 10 . 4 6 2 2 352 31 271 AOE 11 | . . . . . . . . . 1 . . . . . 2 . . . . . . . . . . 1 . 1 . . . . . . . . 1 1 4 Critical Strikes 98 | . . . 1 1 . 2 4 8 6 . 1 2 4 . 7 1 . 1 . . 3 . 2 . 5 3 . 4 . . 1 . . . . . 25 4 13 Actively Blocked 22 | . . . . . . . . . . . . . . . . . . . . . . . . . . . . . . . . . . . . . 22 . . Part Disruptions 2 | . . . . . . . . . . . . . . . . . . . . . 1 . . . . . . . . . . . . . . . . . 1 Damage Taken 43692 | . 577 50 856 243 . 702 1191 1775 1460 51 1080 381 2186 . 3215 1352 51 230 . 131 1193 691 883 55 1690 1683 22 1410 41 . 357 . 160 89 56 62 9651 1155 8963 Core 5083 | . 105 9 50 70 . 99 135 159 151 6 172 72 320 . 138 123 . 38 . 17 60 64 . . 144 239 . 106 . . 70 . 9 . 27 . 1143 114 1443 Absorbed by Shields 1547 | . . . . . . . . 73 . . . . . . . . . . . . . . . . 223 . . . . . . . . . . . 379 . 872 Reduced by Siege Mode 311 | . . . . . . . . . . . . . . . 171 61 . 15 . . . 10 18 . 36 . . . . . . . . . . . . . . Redirected to Shielding 84 | . . . . . . . . . . . . . . . . . . . . . . . . . . . . . . . . . . . . . 71 . 13 Ignored by Resistances 463 | . . . . . . . . . 128 5 44 . . . . . . . . . . . . . . . . . . . . . . . . . . . 286 Regen/Repaired (Parts) 3580 | . . . 15 . . . . . . . . . . . . . . . 158 . . . . . . 92 47 8 . . 120 . . . 181 184 421 558 1796 Core Remaining (%) 50 | 100 . 54 . . . 45 . . 19 . . . 18 . . . . . . 62 . . . . 73 . . . . . . 63 . 99 . . 15 . 2 Volleys Fired 1673 | 6 74 7 89 14 . 42 75 105 78 3 96 19 154 . 106 22 4 16 4 45 84 15 28 26 23 72 18 29 1 . 10 4 3 14 5 2 232 52 96 Largest 4 | 2 2 2 2 2 . 2 2 2 2 2 2 2 2 . 3 3 3 3 1 1 1 3 2 1 1 4 2 4 1 . 3 1 1 1 2 1 3 3 4 Hottest 510 | 40 136 91 91 46 . 46 136 150 150 150 155 150 188 . 269 269 193 250 90 90 90 250 250 65 250 211 90 184 51 . 100 120 43 120 120 120 280 305 510 Shots Fired 2954 | 12 132 12 172 25 . 85 147 171 154 6 160 38 274 . 240 65 9 30 4 52 117 18 33 25 23 118 27 54 1 . 18 4 3 14 7 2 286 71 345 Gun 1940 | 12 64 5 165 22 . 85 33 95 154 6 160 38 265 . 225 65 7 12 . 7 79 17 19 25 20 31 9 8 . . . . . . 4 . 127 18 163 Cannon 892 | . 68 7 5 . . . 113 55 . . . . 5 . 6 . 2 14 1 40 37 . 4 . . 83 18 46 1 . 1 4 . 14 3 2 137 52 174 Launcher 97 | . . . 2 3 . . 1 21 . . . . 4 . 9 . . 4 . 5 1 1 5 . 3 . . . . . 4 . 3 . . . 22 1 8 Special 25 | . . . . . . . . . . . . . . . . . . . 3 . . . 5 . . 4 . . . . 13 . . . . . . . . Kinetic 707 | 12 64 5 165 22 . 85 33 34 . . . . 8 . . 17 2 . . . 46 3 . . . 55 18 37 1 . . 1 . . 4 . 95 . . Thermal 1970 | . 68 7 5 . . . 113 111 154 6 160 38 243 . 219 48 7 26 1 47 70 14 23 . 20 59 9 17 . . . 3 . 14 3 2 76 70 337 Explosive 122 | . . . 2 3 . . 1 21 . . . . 4 . 9 . . 4 3 5 1 1 10 . 3 4 . . . . 17 . 3 . . . 22 1 8 Electromagnetic 143 | . . . . . . . . 5 . . . . 19 . 12 . . . . . . . . 25 . . . . . . . . . . . . 82 . . Entropic 12 | . . . . . . . . . . . . . . . . . . . . . . . . . . . . . . . 1 . . . . . 11 . . Robot Hit Streak 42 | 4 10 3 11 6 . 11 12 14 8 7 12 8 25 . 42 13 4 17 . 8 4 18 10 21 11 6 8 4 1 . 8 . 9 . 1 . 19 26 40 Robot Miss Streak 10 | 3 6 2 6 5 . 2 3 5 4 . 7 3 3 . 3 5 1 2 . 10 7 4 6 3 6 3 2 3 . . . . . . 3 . 4 1 5 Penetration Max 1 | . . . . . . . . . . . . . . . . 1 . . . . 1 . . . . . 1 . . . . . . . . . 1 . . Secondary Targets 17 | . . . 2 . . 1 1 1 1 . 3 1 . . 3 3 1 . . . . . . . . . . . . . . . . . . . . . . Max Gunslinging Chain 1 | . . . 1 . . 1 1 1 1 . 1 1 . . 1 1 1 . . . . . . . . . . . . . . . . . . . . . . Autonomous 53 | . . . . . . . . . . . . . . . . . . . . 8 45 . . . . . . . . . . . . . . . . . . Shots Hit Robots 1734 | 8 82 5 117 19 . 71 101 94 99 6 84 24 172 . 145 35 3 13 . 11 44 13 20 23 21 35 12 15 3 . 7 . 17 3 12 1 160 28 231 Core Hits 1143 | 2 38 4 81 14 . 50 55 49 42 2 53 10 106 . 80 24 5 19 . 14 28 30 46 11 57 30 1 9 2 . 39 . 15 3 6 1 90 14 113 Critical Kills 23 | . 1 . 1 . . . 1 . . . . . . . . 2 . . . . . . . . . 6 . . . . . . . . . . 8 . 4 Critical Parts Destroyed 14 | . . . 1 . . 1 1 . . . . . . . . . . . . . . . . . . 2 2 1 . . . . . . . . 6 . . Critical Strikes 75 | . 1 . 2 . . 1 2 2 7 . 5 . 2 . 2 2 . . . . . . 1 1 . 8 5 1 . . . . 2 . 1 . 26 . 4 Burn 17 | . . . . . . . . 2 7 . 5 . 1 . 2 . . . . . . . . . . . . . . . . . . . . . . . . Meltdown 9 | . 1 . . . . . 1 . . . . . . . . . . . . . . . . . . . . . . . . . . . . . 3 . 4 Destroy 32 | . . . 2 . . 1 1 . . . . . . . . 2 . . . . . . . . . 8 5 1 . . . . . . 1 . 11 . . Blast 6 | . . . . . . . . . . . . . . . . . . . . . . . . . . . . . . . . . . . . . 6 . . Corrupt 3 | . . . . . . . . . . . . . 1 . . . . . . . . . . 1 . . . . . . . . . . . . 1 . . Sever 3 | . . . . . . . . . . . . . . . . . . . . . . . 1 . . . . . . . . . 2 . . . . . . Sunder 5 | . . . . . . . . . . . . . . . . . . . . . . . . . . . . . . . . . . . . . 5 . . Melee Attacks 131 | . . . . . . . . . . . . . . . . . . . . . . . . . . 1 . 13 2 3 2 4 24 15 21 9 37 . . Impact . | . . . . . . . . . . . . . . . . . . . . . . . . . . . . . . . . . . . . . . . . Slashing 130 | . . . . . . . . . . . . . . . . . . . . . . . . . . . . 13 2 3 2 4 24 15 21 9 37 . . Piercing . | . . . . . . . . . . . . . . . . . . . . . . . . . . . . . . . . . . . . . . . . Sneak Attacks 25 | . . . . . . . . . . . . . . . . . . . . . . . . . . 1 . 1 2 . . . 6 . 5 . 10 . . Combat Hostiles . | . . . . . . . . . . . . . . . . . . . . . . . . . . . . . . . . . . . . . . . . Follow-up Attacks . | . . . . . . . . . . . . . . . . . . . . . . . . . . . . . . . . . . . . . . . . Damage Inflicted 75454 | 64 1332 107 2042 403 . 1209 2287 2666 2428 132 1953 587 5263 . 5275 963 68 856 . 980 2399 1433 2899 224 2654 2883 185 511 169 . 4068 . 1416 157 990 86 12196 1556 13013 Guns 31754 | 64 435 11 1724 248 . 1175 477 1069 2386 132 1953 587 4511 . 3751 937 68 130 . 362 1928 1060 796 163 1810 111 61 23 . . . . . . 17 . 1275 391 4099 Cannons 16137 | . 867 84 60 . . . 1558 690 . . . . 117 . 134 . . 160 . 136 98 . . . . 540 124 292 . . . . . . 44 . 5483 731 5019 Explosions 22955 | . . . 233 140 . . 233 907 . . . . 635 . 1390 . . 566 . 482 305 373 1993 61 817 2084 . . . . 3842 . 435 . . . 4130 434 3895 Melee 3826 | . . . . . . . . . . . . . . . . . . . . . . . . . . . . 196 169 . . . 981 157 929 86 1308 . . Ramming 302 | . 30 12 25 15 . 34 19 . 42 . . . . . . 26 . . . . 68 . . . 27 4 . . . . . . . . . . . . . Kinetic 8223 | 64 435 11 1724 248 . 1175 477 410 . . . . 125 . . 298 22 . . . 723 25 . . . 404 185 250 . . . . . . 17 . 1630 . . Thermal 37094 | . 867 84 60 . . . 1558 1223 2386 132 1953 587 4298 . 3649 639 46 290 . 498 1303 1035 796 61 1810 712 . 65 . . . . . . 44 . 2758 1122 9118 Explosive 22353 | . . . 233 140 . . 233 907 . . . . 635 . 1390 . . 566 . 482 305 373 1993 . 817 1619 . . . . 3842 . 435 . . . 4054 434 3895 Electromagnetic 2315 | . . . . . . . . 126 . . . . 205 . 236 . . . . . . . . 163 . . . . . . . . . . . . 1585 . . Impact . | . . . . . . . . . . . . . . . . . . . . . . . . . . . . . . . . . . . . . . . . Slashing 4306 | . . . . . . . . . . . . . . . . . . . . . . . 110 . . 144 . 196 169 . 226 . 981 157 929 86 1308 . . Piercing . | . . . . . . . . . . . . . . . . . . . . . . . . . . . . . . . . . . . . . . . . Entropic 861 | . . . . . . . . . . . . . . . . . . . . . . . . . . . . . . . . . . . . . 861 . . Highest Corruption 44 | . . . . . . 3 2 3 4 . 1 3 14 . 7 7 3 3 3 . 8 4 4 4 4 5 5 22 22 22 22 . . . . . 44 4 20 Average Corruption 6 | . . . . . . 3 2 2 3 . 1 1 9 . 5 6 3 3 3 . 4 3 4 4 4 3 5 6 22 22 22 . . . . . 27 2 7 Corruption Purged 69 | . . . . . . . . . . . . . 10 . . 5 . . . . 8 . . . . . . . . . . . . . . . . . 46 Corruption Blocked . | . . . . . . . . . . . . . . . . . . . . . . . . . . . . . . . . . . . . . . . . Effects 595 | . . . . . . 14 12 35 14 . 5 . 86 . 25 20 33 39 1 . 6 27 48 9 27 21 3 19 6 11 1 . . . . . 102 5 26 Message Errors 161 | . . . . . . 3 4 8 3 . . . 23 . 8 5 16 9 . . 1 6 11 1 11 6 . 6 3 3 1 . . . . . 24 3 6 Matter Fused 123 | . . . . . . 2 2 13 3 . 1 . 14 . 7 3 7 7 1 . 2 7 9 3 8 8 . 3 2 3 . . . . . . 13 . 5 Heat Flow Errors 64 | . . . . . . 1 3 2 2 . 1 . 14 . 1 4 4 4 . . 1 2 8 1 . 2 2 2 . 1 . . . . . . 6 . 3 Energy Discharges 60 | . . . . . . 4 . 4 2 . . . 6 . 4 1 2 6 . . . 5 4 1 4 2 . 2 1 2 . . . . . . 7 . 3 Parts Rejected 9 | . . . . . . . 1 1 . . . . . . . . . . . . . . . . . 1 . 2 . . . . . . . . 3 . 1 Parts Fused 9 | . . . . . . . . . . . . . 1 . 2 . . 1 . . . . 1 . . . . 2 . . . . . . . . 2 . . Data Loss (minor) 60 | . . . . . . 2 2 4 . . . . 12 . 1 1 2 8 . . 2 3 9 . 4 1 . 1 . . . . . . . . 6 1 1 Data Loss (major) 28 | . . . . . . 1 . 2 . . 1 . 6 . 1 3 1 . . . . 1 2 1 . . 1 . . . . . . . . . 6 . 2 Misfires 24 | . . . . . . 1 . 1 1 . 1 . 3 . . 1 1 4 . . . 1 4 . . 1 . 1 . . . . . . . . 4 . . Alerts 10 | . . . . . . . . . . . . . 2 . . 1 . . . . . 2 . 1 . . . . . . . . . . . . 3 . 1 Misdirections 18 | . . . . . . . . . . . . . . . . . . . . . . . . . . . . . . 2 . . . . . . 16 . . Weapon Failures 29 | . . . . . . . . . 3 . 1 . 5 . 1 1 . . . . . . . 1 . . . . . . . . . . . . 12 1 4 Overload Shots 2 | . . . . . . . . . . . . . . . . . . . . . . . . . . . . . . . . . . . . . . . 2 Overflow Damage 2196 | . 11 . 3 . . . . 30 . . . . 14 . 7 . . . . 15 . . 23 . 80 154 . 51 . . 71 . 112 . 61 . 1264 137 163 Projectiles 713 | . 11 . . . . . . 15 . . . . . . . . . . . 10 . . . . . 35 . . . . . . . . . . 544 25 73 Explosions 778 | . . . 3 . . . . 15 . . . . 14 . 7 . . . . 5 . . 23 . 80 119 . . . . 71 . 22 . . . 217 112 90 Melee 705 | . . . . . . . . . . . . . . . . . . . . . . . . . . . . 51 . . . . 90 . 61 . 503 . . Knockbacks 11 | . . . . . . . 1 . . . . . . . . . . . . . . . . . . 2 . 2 . . . . . . . . 6 . . Impact 1 | . . . . . . . 1 . . . . . . . . . . . . . . . . . . . . . . . . . . . . . . . . Kinetic 10 | . . . . . . . . . . . . . . . . . . . . . . . . . . 2 . 2 . . . . . . . . 6 . . Secondary . | . . . . . . . . . . . . . . . . . . . . . . . . . . . . . . . . . . . . . . . . Self-Inflicted Damage 923 | . . . . 16 . . 32 82 . . . . . . 204 . . . . . . . . 55 . 135 . . . . 71 . 61 . . . 165 102 . Shots 20 | . . . . 1 . . 1 3 . . . . . . 5 . . . . . . . . 1 . 2 . . . . 1 . 2 . . . 3 1 . Rammed 34 | . 1 2 7 5 . 4 2 . 4 . . . . . . 2 . . . . 2 . . . 4 1 . . . . . . . . . . . . . Targets Rammed 40 | . 3 2 7 5 . 5 4 . 4 . . . . . . 2 . . . . 3 . . . 4 1 . . . . . . . . . . . . . Kicked 2 | . 2 . . . . . . . . . . . . . . . . . . . . . . . . . . . . . . . . . . . . . . Crushed 4 | . . . . . . 1 2 . . . . . . . . . . . . . 1 . . . . . . . . . . . . . . . . . . Highest Temperature 543 | . 300 8 8 17 . 210 347 234 434 270 160 8 246 . 376 222 234 216 . 84 418 396 181 217 32 359 145 338 . 98 50 132 . 370 82 70 220 397 543 Average Temperature 88 | . 67 7 4 9 . 34 52 79 128 152 32 8 60 . 67 43 72 71 . 46 142 124 59 116 12 49 41 48 . 55 33 54 . 153 35 29 57 94 147 Received Heat Transfer 7441 | . 207 . 225 135 . 396 567 588 678 18 330 237 618 . 696 153 . 81 . 18 81 189 195 . 161 114 . 36 9 . 12 . 9 . 9 9 972 . 698 Thermoelectric Energy+ 7123 | . . . . . . . . . . . . . . . . . . . . . . . . . . . . . . . . . . . . . . . 7123 Effects 23 | . . . . . . 3 . . 3 . . . . . 2 . . . . . 1 2 . . . . . . . . . . . 2 . . . 4 6 Energy Bleed 6 | . . . . . . . . . 2 . . . . . . . . . . . 1 1 . . . . . . . . . . . 1 . . . . 1 Interference 12 | . . . . . . 3 . . 1 . . . . . 1 . . . . . . . . . . . . . . . . . . 1 . . . 3 3 Matter Decay 1 | . . . . . . . . . . . . . . . . . . . . . . . . . . . . . . . . . . . . . . . 1 Short Circuit 2 | . . . . . . . . . . . . . . . 1 . . . . . . . . . . . . . . . . . . . . . . 1 . Damage (minor) 1 | . . . . . . . . . . . . . . . . . . . . . . 1 . . . . . . . . . . . . . . . . . Damage (core) 1 | . . . . . . . . . . . . . . . . . . . . . . . . . . . . . . . . . . . . . . . 1 Siege Activations 18 | . . . . . . . . . . . . . . . 6 2 1 2 . . . 2 2 . 3 . . . . . . . . . . . . . . Total Turns 260 | . . . . . . . . . . . . . . . 113 33 2 28 . . . 22 21 . 41 . . . . . . . . . . . . . . Longest Duration 46 | . . . . . . . . . . . . . . . 46 27 2 20 . . . 18 16 . 26 . . . . . . . . . . . . . . Martial Activations . | . . . . . . . . . . . . . . . . . . . . . . . . . . . . . . . . . . . . . . . . Shielding Activations . | . . . . . . . . . . . . . . . . . . . . . . . . . . . . . . . . . . . . . . . . Robots Disrupted . | . . . . . . . . . . . . . . . . . . . . . . . . . . . . . . . . . . . . . . . . Combat Hostiles . | . . . . . . . . . . . . . . . . . . . . . . . . . . . . . . . . . . . . . . . . Robots Corrupted 13 | . . . . . . . . 1 . . . . . . . . . . . . . . . . . . . . . . . . . . . . 12 . . Combat Hostiles 13 | . . . . . . . . 1 . . . . . . . . . . . . . . . . . . . . . . . . . . . . 12 . . Parts Fried 23 | . . . . . . . . . . . . . 1 . 1 . . . . . 1 . . . . . . . . . . . . . . . 17 . 3 Impact Corruptions 1 | . . . . . . . . . . . . . . . . . . . . . 1 . . . . . . . . . . . . . . . . . . Robots Melted 19 | . 1 . . . . . 1 1 3 1 1 1 2 . 1 . . . . . . . . . . . . . . . . . . . . . 3 . 4 Combat Hostiles 19 | . 1 . . . . . 1 1 3 1 1 1 2 . 1 . . . . . . . . . . . . . . . . . . . . . 3 . 4 Parts Melted 109 | . 2 1 3 . . . 3 4 20 . 15 2 11 . 10 2 . 1 . 1 2 4 2 . 6 1 . . . . . . . . . . 2 4 13 Heat Transferred 51587 | . 1554 148 111 . . . 2812 2699 6100 300 4778 1157 6840 . 4995 1206 100 550 . 510 1150 1450 1175 50 2625 600 . 100 . . . . . . 37 . 1759 1036 7745 Parts Sabotaged 4 | . . . . . . . . . . . . . . . . . . . . . . . . . 1 . . . . . . . . . . . 3 . . Parts Stolen . | . . . . . . . . . . . . . . . . . . . . . . . . . . . . . . . . . . . . . . . . Parts Stripped . | . . . . . . . . . . . . . . . . . . . . . . . . . . . . . . . . . . . . . . . . Power Chain Reactions 2 | . . . . . . . . . . . . . . . . . . . . . . . . 1 . . . . . . . . . . . . 1 . . Alert | -11 -10 -10 -9 -9 -9 -8 -8 -8 -8 -7 -7 -7 -7 -6 -6 -6 -6 -6 -6 -5 -5 -5 -5 -5 -4 -4 -4 -4 -4 -4 -4 -3 -3 -3 -2 -2 -2 -1 -1 ------- Run | Yrd Mat Min Mat Min Exi Min Mat Gar Mat Fac Gar Fac Gar Fac Gar Fac Low Low Zio Pro Fac Upp Upp Zhi Pro Fac Was Fac Upp Upp War Pro Res Tes Res Qua Frg Acc Com Maximum Alert Level 5 | . . . 1 . . . 1 4 4 2 5 3 5 4 5 4 . . . . . . . . . 2 . 1 . . . . . . . . 4 5 4 Low Security (%) 50 | 100 100 100 19 100 . 100 80 3 . . . . . . . . . . . . 100 . . . . 76 100 99 . . . . 100 100 100 100 11 . 62 Level 1 10 | . . . 80 . . . 19 9 . . 7 . . . . . . . . . . . . . . 19 . . . . . . . . . . 12 . . Level 2 5 | . . . . . . . . 13 . 100 25 . 1 . . . . . . . . . . . . 4 . . . . . . . . . . 35 . . Level 3 13 | . . . . . . . . 35 94 . 24 100 20 . 15 92 . . . . . . . . . . . . . . . . . . . . 17 47 . Level 4 12 | . . . . . . . . 38 5 . 28 . 38 100 27 7 . . . . . . . . . . . . . . . . . . . . 22 43 37 Level 5 6 | . . . . . . . . . . . 13 . 38 . 56 . . . . . . . . . . . . . . . . . . . . . . 8 . High Security . | . . . . . . . . . . . . . . . . . . . . . . . . . . . . . . . . . . . . . . . . Max Security . | . . . . . . . . . . . . . . . . . . . . . . . . . . . . . . . . . . . . . . . . Peak Influence 2155 | 5 169 115 352 143 . 198 244 1593 1166 526 1775 997 2155 1131 2072 1153 . . . . 177 . . . . 464 62 217 . . . . 139 136 68 27 1599 1717 1209 Initial 1131 | . . 36 31 73 . . 35 141 776 526 326 931 687 1131 790 1087 . . . . 153 . . . . . 29 . . . . . . 18 68 . . 955 1098 Average 512 | . 81 24 246 33 . 104 111 970 863 493 989 962 1450 1124 1522 859 . . . . 100 . . . . 123 14 94 . . . . 18 88 8 7 697 1137 921 Influence Increases 20404 | 5 634 306 977 182 . 420 772 1612 784 30 1589 191 1598 18 1452 386 70 175 . 197 710 305 446 15 475 1035 78 887 75 15 280 . 278 264 123 104 2530 1182 204 Destroy 0b10 Robot/C 9460 | . 340 180 600 140 . 260 500 700 440 20 820 120 660 . 660 220 60 140 . 160 260 260 380 . 380 240 . 280 . . 260 . 60 . . . 1120 160 40 Destroy 0b10 Robot/NC 590 | 5 55 5 80 . . 5 40 . 35 . . . 40 . 25 . . . . 10 25 5 . 15 . 40 . 10 . . 5 . 50 10 30 5 70 15 10 Destroy Leader 1370 | . 90 30 168 30 . 50 132 20 126 10 40 30 70 . 40 40 10 20 . 20 44 40 30 . 50 56 . 62 . . . . 18 2 6 2 110 22 2 Allied During Kill 414 | . . 31 . . . . . 10 . . 176 11 7 . 43 . . . . 7 . . 6 . . . . 123 . . . . . . . . . . . Successful Hack 425 | . 28 . 33 . . . 13 23 . . 28 14 14 18 . 30 . . . . 27 . . . . 33 . 27 . . . . 6 64 . 28 . 14 25 Select Force Hacks 60 | . 60 . . . . . . . . . . . . . . . . . . . . . . . . . . . . . . . . . . . . . . Disable Machine 1080 | . 30 . . . . . 45 45 15 . 30 15 30 . 60 45 . . . . 15 . . . . 135 . 120 . . . . 15 60 . 30 375 15 . Anti-Garrison Action 2150 | . . . . . . . . 600 150 . 400 . 650 . 350 . . . . . . . . . . . . . . . . . . . . . . . . Destroy Structure 1785 | . 1 . 6 12 . . 12 139 3 . 95 1 82 . 124 6 . . . . 144 . . . . 246 78 130 . . . . 54 38 27 24 290 246 27 Advance Influence 150 | . . . . . . . . . . . . . . . . . . . . . 150 . . . . . . . . . . . . . . . . . . Partial Spotted 225 | . . . . . . . . 30 . . . . . . . . . . . . . . . . . 30 . 30 . . . . 30 . 45 . 60 . . Lose Combat Pursuer 1995 | . 30 60 90 . . 105 30 45 15 . . . 45 . 150 45 . 15 . . 45 . 30 . 45 255 . 105 75 15 15 . 45 90 15 15 405 210 . Active Sensor Use 700 | . . . . . . . . . . . . . . . . . . . . . . . . . . . . . . . . . . . . . 100 500 100 Influence Decreases 19292 | 5 540 317 871 371 . 328 646 237 1219 722 280 984 425 1044 509 1699 829 175 . 191 551 351 283 297 475 952 161 796 95 86 103 177 246 174 245 104 937 1058 809 Entered New Map 7694 | . . 58 52 116 . . 57 77 817 632 140 844 295 1024 339 985 282 . . . 3 62 23 282 . . 54 . 35 15 . 177 . 14 54 . . 638 619 Time Decay 8245 | 5 502 239 628 255 . 328 559 . 302 90 . 60 . 20 . 334 547 175 . 171 531 289 210 15 422 382 82 299 60 60 103 . 117 160 191 82 617 230 180 Search Patrol Dispatched 100 | . . . . . . . . . . . . . . . . . . . . . . . . . . 100 . . . . . . . . . . . . . Lost Part 1236 | . 28 . 20 . . . 30 120 100 . 40 20 130 . 110 80 . . . . 10 . 10 . 53 20 5 90 . . . . . . . . 320 40 10 Lost Ally 609 | . 10 20 21 . . . . 40 . . 100 60 . . 60 . . . . 20 7 . 40 . . . 20 200 . 11 . . . . . . . . . Purge Threat 1408 | . . . 150 . . . . . . . . . . . . 300 . . . . . . . . . 450 . 207 . . . . 129 . . 22 . 150 . Squads Dispatched 90 | . 4 . 3 . . . 3 . 7 2 . 1 . . . 5 . . . . 7 . . . 1 10 . 8 . . . . 2 1 2 3 13 12 6 Investigation 25 | . 3 . . . . . . . 2 2 . . . . . . . . . . . . . . . 4 . 3 . . . . 1 . 1 1 1 5 2 Extermination 23 | . . . . . . . . . . . . . . . . 1 . . . . 3 . . . . 5 . 2 . . . . 1 1 . 1 6 2 1 Reinforcement 24 | . 1 . 3 . . . 3 . 1 . . . . . . . . . . . 4 . . . . 1 . 3 . . . . . . 1 1 2 2 2 Assault 9 | . . . . . . . . . 2 . . . . . . 1 . . . . . . . . 1 . . . . . . . . . . . 4 . 1 Garrison 9 | . . . . . . . . . 2 . . 1 . . . 3 . . . . . . . . . . . . . . . . . . . . . 3 . Intercept . | . . . . . . . . . . . . . . . . . . . . . . . . . . . . . . . . . . . . . . . . Searches Triggered 1 | . . . . . . . . . . . . . . . . . . . . . . . . . . 1 . . . . . . . . . . . . . Construction Impeded 2 | . . . . . . . . . . . . . . . . . . . . . 1 . . . . . . 1 . . . . . . . . . . . Haulers Reinforced 1 | . . . . . . . . . . . . . . . . . . . . . . . . . . . . . . . . . . . 1 . . . . Active Scanning Responses 7 | . . . . . . . . . . . . . . . . . . . . . . . . . . . . . . . . . . . . . 1 5 1 Cargo Convoy Interrupts 1 | . . . . . . . . . . . . . . . . . . . . . 1 . . . . . . . . . . . . . . . . . . Stealth | -11 -10 -10 -9 -9 -9 -8 -8 -8 -8 -7 -7 -7 -7 -6 -6 -6 -6 -6 -6 -5 -5 -5 -5 -5 -4 -4 -4 -4 -4 -4 -4 -3 -3 -3 -2 -2 -2 -1 -1 --------- Run | Yrd Mat Min Mat Min Exi Min Mat Gar Mat Fac Gar Fac Gar Fac Gar Fac Low Low Zio Pro Fac Upp Upp Zhi Pro Fac Was Fac Upp Upp War Pro Res Tes Res Qua Frg Acc Com Distress Signals 48 | . 1 . 5 1 . . 4 . 4 . . . . . . 1 . . . . 6 . . . . 2 . 4 . . . . . 1 9 1 2 2 5 Communications Jammed 2 | . . . . . . . . . . . . . . . . . . . . . . . . . . . . . . . . . . . . . 2 . . Distress Signals 2 | . . . . . . . . . . . . . . . . . . . . . . . . . . . . . . . . . . . . . 2 . . Times Spotted 842 | . 35 9 47 7 . 22 37 34 28 2 40 6 41 . 38 18 3 7 . 8 26 11 27 . 32 30 6 31 6 3 28 . 13 15 11 9 132 19 61 Peak Tracking Total 16 | . 4 3 5 3 . 5 6 6 7 2 4 3 6 . 7 5 3 4 . 4 3 5 7 . 12 10 6 11 4 2 12 . 4 6 4 6 16 14 9 Tactical Retreats 66 | . 2 1 5 . . 3 2 2 1 . . . 2 . 6 2 . 1 . . 3 . 1 . 2 6 . 2 3 1 1 . 3 2 1 1 9 4 . Traps | -11 -10 -10 -9 -9 -9 -8 -8 -8 -8 -7 -7 -7 -7 -6 -6 -6 -6 -6 -6 -5 -5 -5 -5 -5 -4 -4 -4 -4 -4 -4 -4 -3 -3 -3 -2 -2 -2 -1 -1 ------- Run | Yrd Mat Min Mat Min Exi Min Mat Gar Mat Fac Gar Fac Gar Fac Gar Fac Low Low Zio Pro Fac Upp Upp Zhi Pro Fac Was Fac Upp Upp War Pro Res Tes Res Qua Frg Acc Com Traps Triggered 29 | . 1 . . . . . 1 3 1 . 1 . 4 . 1 1 . . . . 2 . . . . 1 . . . . . . . 1 . . 12 . . Indirectly . | . . . . . . . . . . . . . . . . . . . . . . . . . . . . . . . . . . . . . . . . Trap Hack Attempts . | . . . . . . . . . . . . . . . . . . . . . . . . . . . . . . . . . . . . . . . . Triggered . | . . . . . . . . . . . . . . . . . . . . . . . . . . . . . . . . . . . . . . . . Disarmed . | . . . . . . . . . . . . . . . . . . . . . . . . . . . . . . . . . . . . . . . . Reprogrammed . | . . . . . . . . . . . . . . . . . . . . . . . . . . . . . . . . . . . . . . . . Reused . | . . . . . . . . . . . . . . . . . . . . . . . . . . . . . . . . . . . . . . . . Traps Extracted . | . . . . . . . . . . . . . . . . . . . . . . . . . . . . . . . . . . . . . . . . Installed . | . . . . . . . . . . . . . . . . . . . . . . . . . . . . . . . . . . . . . . . . Triggered . | . . . . . . . . . . . . . . . . . . . . . . . . . . . . . . . . . . . . . . . . Machines | -11 -10 -10 -9 -9 -9 -8 -8 -8 -8 -7 -7 -7 -7 -6 -6 -6 -6 -6 -6 -5 -5 -5 -5 -5 -4 -4 -4 -4 -4 -4 -4 -3 -3 -3 -2 -2 -2 -1 -1 ---------- Run | Yrd Mat Min Mat Min Exi Min Mat Gar Mat Fac Gar Fac Gar Fac Gar Fac Low Low Zio Pro Fac Upp Upp Zhi Pro Fac Was Fac Upp Upp War Pro Res Tes Res Qua Frg Acc Com Machines Disabled 113 | . 2 . . . . . 3 11 2 . 8 1 7 . 10 3 . . 1 . 1 1 1 2 . 9 . 8 1 . 1 . 1 4 . 2 32 1 1 Max in Single Turn 5 | . 1 . . . . . 1 1 1 . 1 1 1 . 2 2 . . 1 . 1 1 1 1 . 5 . 1 1 . 1 . 1 1 . 1 2 1 1 Garrison Access 5 | . . . . . . . . . 1 . . . . . . . . . . . . . . . . . . . . . . . 1 . 1 1 1 . . Garrison Relay 20 | . . . . . . . . 5 . . 6 . 5 . 4 . . . . . . . . . . . . . . . . . . . . . . . . Phase Generator 2 | . . . . . . . . 1 . . . . . . 1 . . . . . . . . . . . . . . . . . . . . . . . . Machines Repaired . | . . . . . . . . . . . . . . . . . . . . . . . . . . . . . . . . . . . . . . . . Machines Dismantled . | . . . . . . . . . . . . . . . . . . . . . . . . . . . . . . . . . . . . . . . . Machines Sabotaged . | . . . . . . . . . . . . . . . . . . . . . . . . . . . . . . . . . . . . . . . . Overloaded Fab Kills . | . . . . . . . . . . . . . . . . . . . . . . . . . . . . . . . . . . . . . . . . Hacking | -11 -10 -10 -9 -9 -9 -8 -8 -8 -8 -7 -7 -7 -7 -6 -6 -6 -6 -6 -6 -5 -5 -5 -5 -5 -4 -4 -4 -4 -4 -4 -4 -3 -3 -3 -2 -2 -2 -1 -1 --------- Run | Yrd Mat Min Mat Min Exi Min Mat Gar Mat Fac Gar Fac Gar Fac Gar Fac Low Low Zio Pro Fac Upp Upp Zhi Pro Fac Was Fac Upp Upp War Pro Res Tes Res Qua Frg Acc Com Machines Accessed 116 | . 9 1 7 . . . 9 4 1 3 1 1 4 1 2 5 . . . . 5 . 1 4 . 11 . 8 . 2 1 . 7 8 3 6 3 4 5 Terminals 74 | . 7 1 5 . . . 6 4 1 . 1 . 4 . 2 3 . . . . 3 . . . . 6 . 5 . . . . 4 6 2 4 2 4 4 Fabricators 11 | . . . . . . . . . . 1 . . . . . 1 . . . . 2 . . . . 3 . 2 . . . . 2 . . . . . . Repair Stations 8 | . . . 1 . . . . . . 1 . . . . . . . . . . . . . . . 1 . . . . . . . 2 1 1 . . 1 Recycling Units 3 | . 2 . . . . . . . . . . . . . . . . . . . . . . . . 1 . . . . . . . . . . . . . Scanalyzers 4 | . . . 1 . . . 2 . . . . . . . . . . . . . . . . . . . . 1 . . . . . . . . . . . Garrison Access 8 | . . . . . . . 1 . . 1 . 1 . 1 . 1 . . . . . . . . . . . . . . . . 1 . . 1 1 . . Total Hacks 306 | . 21 3 26 . . . 24 9 3 7 2 1 7 1 3 13 . . . . 13 . 1 16 . 39 . 28 . 6 1 . 19 22 8 15 4 5 9 Successful 181 | . 13 . 16 . . . 16 2 1 3 2 1 1 1 . 6 . . . . 5 . 1 16 . 23 . 16 . 6 1 . 9 10 3 15 2 5 7 Failed 124 | . 8 3 10 . . . 7 7 2 4 . . 6 . 3 7 . . . . 8 . . . . 16 . 12 . . . . 10 12 5 . 2 . 2 Catastrophic 23 | . . . 2 . . . 1 1 . 1 . . . . 1 3 . . . . 4 . . . . 3 . 4 . . . . 1 1 . . . . 1 Database Lockouts 1 | . . . . . . . 1 . . . . . . . . . . . . . . . . . . . . . . . . . . . . . . . . Manual 130 | . 19 3 16 . . . 16 . 3 1 1 . . . . 1 . . . . 11 1 . . . 11 . 4 . . . . 14 6 8 6 2 1 6 Terminals 192 | . 18 3 16 . . . 16 9 3 . 2 . 7 . 3 11 . . . . 9 . . . . 21 . 16 . . . . 11 18 6 8 3 5 7 Fabricators 34 | . . . . . . . . . . 3 . . . . . 1 . . . . 4 . . . . 10 . 9 . . . . 7 . . . . . . Repair Stations 25 | . . . 6 . . . . . . 2 . . . . . . . . . . . . . . . 4 . . . . . . . 4 2 5 . . 2 Recycling Units 7 | . 3 . . . . . . . . . . . . . . . . . . . . . . . . 4 . . . . . . . . . . . . . Scanalyzers 14 | . . . 4 . . . 7 . . . . . . . . . . . . . . . . . . . . 3 . . . . . . . . . . . Garrison Access 10 | . . . . . . . 1 . . 2 . 1 . 1 . 1 . . . . . . . . . . . . . . . . 1 . . 2 1 . . Terminal Hacks 77 | . 3 . 3 . . . 2 2 1 . 1 . 1 . . 5 . . . . 1 . 1 16 . 6 . 5 . 6 1 . 2 6 1 5 1 5 3 Record 9 | . . . . . . . . . . . . . . . . . . . . . . . . 4 . . . . . 5 . . . . . . . . . Part Schematic 10 | . 2 . . . . . . . . . . . . . . 1 . . . . . . . 4 . 1 . . . . . . . 1 . . . . 1 Robot Analysis 4 | . . . . . . . . . . . . . . . . . . . . . . . . 4 . . . . . . . . . . . . . . . Prototype ID Bank 7 | . . . . . . . 1 . . . . . . . . 1 . . . . . . . 4 . . . . . . . . . . . 1 . . . Open Door 8 | . . . . . . . . 1 . . . . . . . . . . . . . . 1 . . . . . . 1 1 . . . . . . 3 1 Level Access Points 1 | . . . . . . . . . . . . . . . . . . . . . . . . . . . . . . . . . . 1 . . . . . Branch Access Points 6 | . . . . . . . . . . . . . . . . . . . . . 1 . . . . 1 . 1 . . . . 1 . 1 . . 1 . Emergency Access Points 2 | . . . . . . . . . . . 1 . 1 . . . . . . . . . . . . . . . . . . . . . . . . . . Machine Index 1 | . . . . . . . . . . . . . . . . . . . . . . . . . . . . 1 . . . . . . . . . . . Terminal Index 3 | . 1 . . . . . . . . . . . . . . . . . . . . . . . . . . . . . . . . 1 . 1 . . . Alert Level 2 | . . . . . . . . . . . . . . . . . . . . . . . . . . 1 . 1 . . . . . . . . . . . Unreport Threat 12 | . . . 1 . . . . . . . . . . . . 2 . . . . . . . . . 3 . 2 . . . . 1 . . 2 . 1 . Transport Status 1 | . . . 1 . . . . . . . . . . . . . . . . . . . . . . . . . . . . . . . . . . . . Hauler Manifests 3 | . . . 1 . . . 1 . 1 . . . . . . . . . . . . . . . . . . . . . . . . . . . . . . Zone Layout 6 | . . . . . . . . . . . . . . . . 1 . . . . . . . . . . . . . . . . . 3 . 1 . . 1 Security Stations 1 | . . . . . . . . 1 . . . . . . . . . . . . . . . . . . . . . . . . . . . . . . . Proto ID Catalog 1 | . . . . . . . . . . . . . . . . . . . . . . . . . . . . . . . . . . . . . 1 . . Fabricator Hacks 17 | . . . . . . . . . . 1 . . . . . . . . . . 1 . . . . 4 . 8 . . . . 3 . . . . . . Network Status 2 | . . . . . . . . . . . . . . . . . . . . . 1 . . . . 1 . . . . . . . . . . . . . Load Schematic 10 | . . . . . . . . . . 1 . . . . . . . . . . . . . . . 3 . 4 . . . . 2 . . . . . . Build 5 | . . . . . . . . . . . . . . . . . . . . . . . . . . . . 4 . . . . 1 . . . . . . Repair Station Hacks 17 | . . . 4 . . . . . . 1 . . . . . . . . . . . . . . . 4 . . . . . . . 1 . 5 . . 2 Scan Component 10 | . . . 2 . . . . . . 1 . . . . . . . . . . . . . . . 2 . . . . . . . 1 . 3 . . 1 Repair 7 | . . . 2 . . . . . . . . . . . . . . . . . . . . . . 2 . . . . . . . . . 2 . . 1 Recycling Unit Hacks 2 | . . . . . . . . . . . . . . . . . . . . . . . . . . 2 . . . . . . . . . . . . . Recycle Component 1 | . . . . . . . . . . . . . . . . . . . . . . . . . . 1 . . . . . . . . . . . . . Process 1 | . . . . . . . . . . . . . . . . . . . . . . . . . . 1 . . . . . . . . . . . . . Scanalyzer 12 | . . . 3 . . . 6 . . . . . . . . . . . . . . . . . . . . 3 . . . . . . . . . . . Insert Component 3 | . . . 1 . . . 1 . . . . . . . . . . . . . . . . . . . . 1 . . . . . . . . . . . Analyze 5 | . . . 1 . . . 2 . . . . . . . . . . . . . . . . . . . . 2 . . . . . . . . . . . Retrieve Study 4 | . . . 1 . . . 3 . . . . . . . . . . . . . . . . . . . . . . . . . . . . . . . . Garrison Access Hacks 8 | . . . . . . . 1 . . 1 . 1 . 1 . . . . . . . . . . . . . . . . . . 1 . . 2 1 . . Unlock Access 4 | . . . . . . . 1 . . 1 . 1 . 1 . . . . . . . . . . . . . . . . . . . . . . . . . Seal Access 3 | . . . . . . . . . . . . . . . . . . . . . . . . . . . . . . . . . 1 . . 1 1 . . Coupler Status 1 | . . . . . . . . . . . . . . . . . . . . . . . . . . . . . . . . . . . . 1 . . . Unauthorized Hacks 48 | . 10 . 6 . . . 7 . . . 1 . . . . 1 . . . . 3 . . . . 7 . . . . . . 3 3 2 3 . . 2 Terminals 39 | . 8 . 6 . . . 7 . . . 1 . . . . 1 . . . . 2 . . . . 3 . . . . . . 2 3 1 3 . . 2 Track 5 | . . . . . . . . . . . . . . . . . . . . . . . . . . . . . . . . . 2 2 . . . . 1 Assimilate 5 | . 1 . . . . . . . . . . . . . . . . . . . 1 . . . . . . . . . . . . 1 1 1 . . . Botnet 7 | . . . 1 . . . 1 . . . 1 . . . . 1 . . . . 1 . . . . 2 . . . . . . . . . . . . . Disrupt 3 | . . . . . . . . . . . . . . . . . . . . . . . . . . . . . . . . . . . . 2 . . 1 Operators 2 | . 1 . . . . . . . . . . . . . . . . . . . . . . . . 1 . . . . . . . . . . . . . Skim 17 | . 6 . 5 . . . 6 . . . . . . . . . . . . . . . . . . . . . . . . . . . . . . . . Fabricators 6 | . . . . . . . . . . . . . . . . . . . . . 1 . . . . 4 . . . . . . 1 . . . . . . Haulers 2 | . . . . . . . . . . . . . . . . . . . . . 1 . . . . 1 . . . . . . . . . . . . . Recompile 4 | . . . . . . . . . . . . . . . . . . . . . . . . . . 3 . . . . . . 1 . . . . . . Repair Stations 1 | . . . . . . . . . . . . . . . . . . . . . . . . . . . . . . . . . . . 1 . . . . Patch 1 | . . . . . . . . . . . . . . . . . . . . . . . . . . . . . . . . . . . 1 . . . . Recycling Units 2 | . 2 . . . . . . . . . . . . . . . . . . . . . . . . . . . . . . . . . . . . . . Tunnel 2 | . 2 . . . . . . . . . . . . . . . . . . . . . . . . . . . . . . . . . . . . . . Scanalyzers . | . . . . . . . . . . . . . . . . . . . . . . . . . . . . . . . . . . . . . . . . Garrison Access . | . . . . . . . . . . . . . . . . . . . . . . . . . . . . . . . . . . . . . . . . Data Cores Recovered 3 | . . . . . . . . . . . . . . . . . . . . . . . . . . . . . . . . . 1 1 . 1 . . . Used . | . . . . . . . . . . . . . . . . . . . . . . . . . . . . . . . . . . . . . . . . Hacking Detections 90 | . 8 1 6 . . . 6 3 1 3 1 1 3 1 2 5 . . . . 5 . . . . 9 . 8 . . . . 5 7 3 6 1 1 4 Full Trace Events 10 | . . . . . . . . 2 1 2 . . . . . . . . . . . . . . . 1 . 3 . . . . . . . . . . 1 Feedback Events 4 | . . . . . . . . . 1 1 . . . . . . . . . . . . . . . 1 . 1 . . . . . . . . . . . Corruption 4 | . . . . . . . . . 1 1 . . . . . . . . . . . . . . . 1 . 1 . . . . . . . . . . . Feedback Blocked . | . . . . . . . . . . . . . . . . . . . . . . . . . . . . . . . . . . . . . . . . Robot Schematics Acquired 2 | . . . . . . . . . . . . . . . . . . . 2 . . . . . . . . . . . . . . . . . . . . Robots Built . | . . . . . . . . . . . . . . . . . . . . . . . . . . . . . . . . . . . . . . . . Authchips . | . . . . . . . . . . . . . . . . . . . . . . . . . . . . . . . . . . . . . . . . Time . | . . . . . . . . . . . . . . . . . . . . . . . . . . . . . . . . . . . . . . . . Total Robot Build Rating . | . . . . . . . . . . . . . . . . . . . . . . . . . . . . . . . . . . . . . . . . Part Schematics Acquired 30 | . 2 . 1 . . . 1 . . . . . . . . 1 . . 16 . . . . 4 . 1 . 1 . . . . . 1 . . 1 . 1 Parts Built 7 | . . . . . . . . . . . . . . . . . . . . . . . . . . . . 5 . . . . 2 . . . . . . Authchips 4 | . . . . . . . . . . . . . . . . . . . . . . . . . . . . 3 . . . . 1 . . . . . . Time 283 | . . . . . . . . . . . . . . . . . . . . . . . . . . . . 237 . . . . 46 . . . . . . Total Part Build Rating 54 | . . . . . . . . . . . . . . . . . . . . . . . . . . . . 36 . . . . 18 . . . . . . Part Studies Acquired 3 | . . . 1 . . . 2 . . . . . . . . . . . . . . . . . . . . . . . . . . . . . . . . Parts Repaired 7 | . . . 2 . . . . . . . . . . . . . . . . . . . . . . 2 . . . . . . . . . 2 . . 1 Time 280 | . . . 90 . . . . . . . . . . . . . . . . . . . . . . 94 . . . . . . . . . 59 . . 37 Parts Recycled 1 | . . . . . . . . . . . . . . . . . . . . . . . . . . 1 . . . . . . . . . . . . . Recycled Matter 4 | . . . . . . . . . . . . . . . . . . . . . . . . . . 4 . . . . . . . . . . . . . Retrieved Matter . | . . . . . . . . . . . . . . . . . . . . . . . . . . . . . . . . . . . . . . . . Retrieved Components . | . . . . . . . . . . . . . . . . . . . . . . . . . . . . . . . . . . . . . . . . Parts Scanalyzed 3 | . . . 1 . . . 1 . . . . . . . . . . . . . . . . . . . . 1 . . . . . . . . . . . Part Schematics Acquired 3 | . . . 1 . . . 1 . . . . . . . . . . . . . . . . . . . . 1 . . . . . . . . . . . Parts Damaged 1 | . . . 1 . . . . . . . . . . . . . . . . . . . . . . . . . . . . . . . . . . . . Bothacking | -11 -10 -10 -9 -9 -9 -8 -8 -8 -8 -7 -7 -7 -7 -6 -6 -6 -6 -6 -6 -5 -5 -5 -5 -5 -4 -4 -4 -4 -4 -4 -4 -3 -3 -3 -2 -2 -2 -1 -1 ------------ Run | Yrd Mat Min Mat Min Exi Min Mat Gar Mat Fac Gar Fac Gar Fac Gar Fac Low Low Zio Pro Fac Upp Upp Zhi Pro Fac Was Fac Upp Upp War Pro Res Tes Res Qua Frg Acc Com Used RIF Installer . | . . . . . . . . . . . . . . . . . . . . . . . . . . . . . . . . . . . . . . . . Robots Hacked 1 | . . . . . . . . . . . . . . . . . . . . . . . . . . 1 . . . . . . . . . . . . . Non-combat 1 | . . . . . . . . . . . . . . . . . . . . . . . . . . 1 . . . . . . . . . . . . . Combat . | . . . . . . . . . . . . . . . . . . . . . . . . . . . . . . . . . . . . . . . . Robot Hacks Applied 1 | . . . . . . . . . . . . . . . . . . . . . . . . . . 1 . . . . . . . . . . . . . find_chute 1 | . . . . . . . . . . . . . . . . . . . . . . . . . . 1 . . . . . . . . . . . . . Relay Couplers Released 91 | . . . . . . . . 23 1 . 25 . 20 . 19 . . . . . . . . . . . . . . . . . . . 2 . 1 . . Machine Destruction 85 | . . . . . . . . 20 1 . 25 . 20 . 16 . . . . . . . . . . . . . . . . . . . 2 . 1 . . Programmers 6 | . . . . . . . . 3 . . . . . . 3 . . . . . . . . . . . . . . . . . . . . . . . . Fabnet Peak Effective % . | . . . . . . . . . . . . . . . . . . . . . . . . . . . . . . . . . . . . . . . . Robots Rewired 19 | . . . . . . . . 5 . . 9 . 3 . . . . . . . . . 2 . . . . . . . . . . . . . . . . Allies Hacked 1 | . . . . . . . . . . . . . . . . . . . . . . . . . . . . 1 . . . . . . . . . . . Hacks Repelled . | . . . . . . . . . . . . . . . . . . . . . . . . . . . . . . . . . . . . . . . . Allies | -11 -10 -10 -9 -9 -9 -8 -8 -8 -8 -7 -7 -7 -7 -6 -6 -6 -6 -6 -6 -5 -5 -5 -5 -5 -4 -4 -4 -4 -4 -4 -4 -3 -3 -3 -2 -2 -2 -1 -1 -------- Run | Yrd Mat Min Mat Min Exi Min Mat Gar Mat Fac Gar Fac Gar Fac Gar Fac Low Low Zio Pro Fac Upp Upp Zhi Pro Fac Was Fac Upp Upp War Pro Res Tes Res Qua Frg Acc Com Total Allies 53 | . 1 3 . 1 . . . 5 . . 9 . 3 . . . . . 3 . 1 . 2 . . . 20 . . 2 . . . 1 1 1 . . . Largest Group 19 | . 1 3 2 1 . . . 3 . . 6 3 3 3 3 . . . 3 3 1 . 2 . . . 19 15 . 2 . . . 1 2 3 . . . Highest-Rated Group 702 | . 10 40 24 31 . . . 89 . . 170 88 96 96 96 . . . 90 90 10 . 58 . . . 702 601 . 84 . . . 26 71 97 . . . Highest-Rated Ally 51 | . 10 16 16 31 . . . 39 . . 43 43 32 32 32 . . . 51 51 10 . 29 . . . 50 50 . 46 . . . 26 45 45 . . . Initial Warlord ECA Mod 36 | . . . . . . . . . 10 9 9 19 19 27 27 36 36 36 36 35 35 35 35 35 34 34 34 34 34 34 34 33 33 33 32 32 32 31 31 Total Orders 9 | . . . . . . . . . . . . . 2 . 2 . . . . . . . . . . . . . . . . . . . 4 1 . . . STAY 5 | . . . . . . . . . . . . . 1 . 1 . . . . . . . . . . . . . . . . . . . 2 1 . . . FOLLOW 4 | . . . . . . . . . . . . . 1 . 1 . . . . . . . . . . . . . . . . . . . 2 . . . . Ally Attacks 353 | . . 18 5 . . . . 15 . . 89 7 1 . 13 . . . . 13 . . 10 . . . 127 53 . 2 . . . . . . . . . Total Damage 11426 | . . 165 62 . . . . 143 . . 2142 176 28 . 434 . . . . 355 . . 130 . . . 5161 2552 . 78 . . . . . . . . . Kills 56 | . . 6 . . . . . 2 . . 18 1 . . 2 . . . . 3 . . 2 . . . 9 13 . . . . . . . . . . . Allies Corrupted 6 | . . . . . . . . . . . . . . . . . . . . . . . . . . . . 6 . . . . . . . . . . . Allies Melted 9 | . . . . . . . . . . . . . . . . . . . . . . . . . . . . . . . . . . . 2 . . . 7 Intel | -11 -10 -10 -9 -9 -9 -8 -8 -8 -8 -7 -7 -7 -7 -6 -6 -6 -6 -6 -6 -5 -5 -5 -5 -5 -4 -4 -4 -4 -4 -4 -4 -3 -3 -3 -2 -2 -2 -1 -1 ------- Run | Yrd Mat Min Mat Min Exi Min Mat Gar Mat Fac Gar Fac Gar Fac Gar Fac Low Low Zio Pro Fac Upp Upp Zhi Pro Fac Was Fac Upp Upp War Pro Res Tes Res Qua Frg Acc Com Active Infowar (turns) 21505 | 7 328 . 996 . . . . . . . . . . . . 379 1676 1827 2124 1062 1650 1406 1830 193 172 1115 240 588 139 208 635 355 318 325 1198 278 1907 491 58 Optics 1485 | . . . . . . . . . . . . . . . . . . . . . . . . . . . . . . . . . . . 987 278 220 . . Sensors 18280 | . . . . . . . . . . . . . . . . 379 1665 1827 2124 1062 1650 1406 1803 193 172 1115 240 588 139 206 618 355 318 325 1188 256 651 . . A.S.S. 606 | . . . . . . . . . . . . . . . . . . . . . . . . . . . . . . . . . . . . . 69 491 46 IFF 11 | . . . . . . . . . . . . . . . . . 11 . . . . . . . . . . . . . . . . . . . . . . Terrain 2129 | . . . . . . . . . . . . . . . . . . . . . . . . . . . . . 80 208 635 355 318 325 208 . . . . Seismic 1333 | 7 328 . 996 . . . . . . . . . . . . . . . . . . . . . . . . . . . . . . . 2 . . . . Cloaking 700 | . . . . . . . . . . . . . . . . . . . . . . . . . . . . . . . . . . . . 1 221 423 55 Jamming 1821 | . . . . . . . . . . . . . . . . . . . . . . . 27 . . . . . . . . . . . . 3 1789 . 2 ECM 1 | . . . . . . . . . . . . . . . . . . . . . . . . . . . . . . . . . . . . . . . 1 Robot Analysis Total 4 | . . . . . . . . . . . . . . . . . . . . . . . . 4 . . . . . . . . . . . . . . . Derelict Logs Recovered 17 | . . 3 . 2 . . . . . . . . . . . . 1 1 2 2 . 2 2 . . . . . 1 1 . . . . . . . . . Drone Launches . | . . . . . . . . . . . . . . . . . . . . . . . . . . . . . . . . . . . . . . . . Drone Recoveries . | . . . . . . . . . . . . . . . . . . . . . . . . . . . . . . . . . . . . . . . . Exploration | -11 -10 -10 -9 -9 -9 -8 -8 -8 -8 -7 -7 -7 -7 -6 -6 -6 -6 -6 -6 -5 -5 -5 -5 -5 -4 -4 -4 -4 -4 -4 -4 -3 -3 -3 -2 -2 -2 -1 -1 ------------- Run | Yrd Mat Min Mat Min Exi Min Mat Gar Mat Fac Gar Fac Gar Fac Gar Fac Low Low Zio Pro Fac Upp Upp Zhi Pro Fac Was Fac Upp Upp War Pro Res Tes Res Qua Frg Acc Com Turns Passed 42257 | 92 2499 1452 2276 1081 232 955 1654 1942 669 186 1390 120 2342 47 1469 756 1678 1879 2124 1062 1650 1628 1911 318 1362 1446 271 664 139 208 635 355 318 325 1198 278 2168 491 987 Spaces Moved 29926 | 47 855 595 973 644 146 487 613 946 227 97 632 33 966 23 637 399 1021 1073 1306 592 781 865 982 154 606 1088 334 981 282 422 875 497 606 568 3010 664 3275 939 685 Core 21 | 21 . . . . . . . . . . . . . . . . . . . . . . . . . . . . . . . . . . . . . . . Treads 15286 | . 544 595 973 644 146 487 613 946 227 97 632 33 683 23 637 399 1021 1073 1306 592 781 865 982 154 606 227 . . . . . . . . . . . . . Legs 748 | 26 311 . . . . . . . . . . . 283 . . . . . . . . . . . . . . . . . . . . . . . . . 128 Wheels . | . . . . . . . . . . . . . . . . . . . . . . . . . . . . . . . . . . . . . . . . Hover 13871 | . . . . . . . . . . . . . . . . . . . . . . . . . . 861 334 981 282 422 875 497 606 568 3010 664 3275 939 557 Flight . | . . . . . . . . . . . . . . . . . . . . . . . . . . . . . . . . . . . . . . . . Fastest Speed 14 | 50 120 240 160 160 160 160 160 150 150 160 160 160 160 160 160 160 160 160 160 160 160 160 160 160 160 27 36 28 34 34 34 34 15 29 25 14 14 33 33 Average Speed 105 | 134 227 240 160 160 160 160 160 156 158 160 160 162 176 160 160 160 160 160 160 160 160 160 160 160 195 73 44 36 37 34 45 34 28 29 25 24 32 34 61 Slowest Speed 470 | 200 470 240 240 160 160 160 160 240 400 160 160 240 240 160 240 160 160 160 160 240 160 160 160 240 240 320 92 44 44 34 109 34 29 100 25 25 151 110 370 Overloaded Moves 255 | . . . . . . . . . . . . . . . . . . . . . . . . . . 40 . 27 8 . . . 8 . . 9 163 . . Propulsion Burnouts 1 | . . . . . . . . . . . . . . . . . . . . . . . . . . . . . . . . . . . . . 1 . . Robots Hopped . | . . . . . . . . . . . . . . . . . . . . . . . . . . . . . . . . . . . . . . . . Potential Cave-ins 6 | . . . . . . . . . . . . . . . . . . . . . . . . . . 4 . 2 . . . . . . . . . . . Cave-ins Triggered 1 | . . . . . . . . . . . . . . . . . . . . . . . . . . . . 1 . . . . . . . . . . . Teleports 20 | . . . . . . . . . . . . . . . . . . . . . . . . . . . . . . . . . . . . . 20 . . Exploration Rate (%) 59 | 4 93 98 55 99 51 90 53 92 24 5 94 2 92 1 83 12 99 93 85 72 27 96 94 60 65 24 92 24 52 57 88 68 20 62 64 78 43 35 28 Regions Visited 39 Branch Regions 20 Pre-discovered Areas 17 | . 4 2 2 1 . . 2 . . . . . . . . . 1 1 1 . . . . 3 . . . . . . . . . . . . . . . Known Exits Taken 28 | . . 1 1 1 . 1 1 . 1 1 . 1 . 1 . 1 1 1 1 1 1 1 1 1 1 . . 1 1 . . 1 1 1 1 1 1 1 . Unknown Exits Taken 5 | 1 1 . . . 1 . . . . . . . . . . . . . . . . . . . . . . . . 1 1 . . . . . . . . Scrap Searched 30 | . . 1 . 3 . 2 . . . . . . . . . . 4 3 1 2 . 1 3 . 5 . . . . 2 . 3 . . . . . . . Spaces Dug 355 | . . . . . . . . 1 . . . . . . 15 . 2 4 . 18 24 . 15 . 29 26 2 14 . 3 29 5 13 12 8 7 42 82 4 Terrain Destroyed 1380 | . . . 5 14 . . 7 153 . . . . 13 . 121 3 2 52 . 83 93 17 86 . 41 153 9 27 . 3 144 7 36 21 9 8 101 95 77 Melee 52 | . . . . . . . . . . . . . . . . . . . . . . . . . . . . 8 . 3 2 4 3 8 7 7 10 . . Projectile 311 | . . . . . . . . . . . . . . . 1 3 2 8 . 28 76 . 6 . . 51 9 19 . . 1 3 . 13 2 1 42 34 12 AOE 1016 | . . . 5 14 . . 7 153 . . . . 13 . 120 . . 44 . 55 17 17 80 . 41 101 . . . . 141 . 33 . . . 49 61 65 Terrain Rammed . | . . . . . . . . . . . . . . . . . . . . . . . . . . . . . . . . . . . . . . . . Walls Destroyed . | . . . . . . . . . . . . . . . . . . . . . . . . . . . . . . . . . . . . . . . . Machines Disabled . | . . . . . . . . . . . . . . . . . . . . . . . . . . . . . . . . . . . . . . . . Actions | -11 -10 -10 -9 -9 -9 -8 -8 -8 -8 -7 -7 -7 -7 -6 -6 -6 -6 -6 -6 -5 -5 -5 -5 -5 -4 -4 -4 -4 -4 -4 -4 -3 -3 -3 -2 -2 -2 -1 -1 --------- Run | Yrd Mat Min Mat Min Exi Min Mat Gar Mat Fac Gar Fac Gar Fac Gar Fac Low Low Zio Pro Fac Upp Upp Zhi Pro Fac Was Fac Upp Upp War Pro Res Tes Res Qua Frg Acc Com Total 37540 | 62 1280 605 1518 667 145 576 1144 1233 376 124 851 61 1341 31 907 467 1056 1210 1339 662 1098 1075 1265 200 714 1638 428 1223 309 481 1093 671 710 688 3423 758 4036 1044 1031 Wait 4083 | . 310 2 394 1 . 32 395 55 47 12 17 . 53 3 101 13 9 106 17 1 176 174 200 . 61 379 69 157 20 46 146 165 65 61 318 72 248 28 130 Move 29890 | 46 854 594 972 643 145 486 613 945 226 97 631 33 965 23 636 398 1020 1072 1305 591 781 864 981 153 605 1088 333 979 281 421 874 496 605 567 3009 663 3272 938 685 Hop . | . . . . . . . . . . . . . . . . . . . . . . . . . . . . . . . . . . . . . . . . Pick Up 321 | 3 25 . 11 1 . 1 10 3 4 6 5 1 30 1 17 13 3 3 4 . 14 3 7 4 3 20 1 8 . 6 7 . 4 1 12 2 58 7 23 Fast Attach 263 | 7 1 . 3 . . 1 5 6 7 2 3 2 15 1 8 2 6 2 1 7 7 1 11 7 5 15 2 5 1 2 21 . 1 16 12 1 42 . 35 Attach 213 | . 3 . 3 1 . . 5 11 5 1 2 2 10 1 11 8 1 2 2 5 4 7 7 1 3 19 . 7 4 . 2 . 3 1 3 . 46 12 21 Detach 54 | . . . . . . . 1 2 1 . . . . . 1 1 . . 1 5 . 5 5 1 1 4 1 1 . . . . . . . . 15 2 7 Swap 239 | . 4 . 19 1 . 5 17 14 2 . 12 1 21 2 10 3 6 4 . 1 10 4 1 . 3 12 2 14 . . 7 2 1 . 14 7 22 3 15 Drop 402 | . 6 . 20 1 . 4 19 1 2 3 15 3 46 . 17 5 7 5 5 7 20 2 13 8 6 27 2 9 . 3 24 . 4 13 29 2 53 2 19 Fire 1673 | 6 74 7 89 14 . 42 75 105 78 3 96 19 154 . 106 22 4 16 4 45 84 15 28 26 23 72 18 29 1 . 10 4 3 14 5 2 232 52 96 Melee 131 | . . . . . . . . . . . . . . . . . . . . . . . . . . 1 . 13 2 3 2 4 24 15 21 9 37 . . Ram 1 | . . . . . . . . . . . . . . . . . . . . . . . . . . 1 . . . . . . . . . . . . . Kick 2 | . 2 . . . . . . . . . . . . . . . . . . . . . . . . . . . . . . . . . . . . . . Crush 36 | . 1 2 7 5 . 5 4 . 4 . . . . . . 2 . . . . 2 . . . 4 . . . . . . . . . . . . . . Escape Stasis 25 | . . . . . . . . 3 . . . . 10 . . . . . . . . . . . . . . 1 . . . . . . . . 11 . . Rewire 207 | . . . . . . . . 88 . . 70 . 37 . . . . . . . . . 12 . . . . . . . . . . . . . . . . Trap . | . . . . . . . . . . . . . . . . . . . . . . . . . . . . . . . . . . . . . . . . Miscellaneous . | . . . . . . . . . . . . . . . . . . . . . . . . . . . . . . . . . . . . . . . . Route ------- -11/Scrapyard -10/Materials (discovered 5 exits: *Mat x3 / *Min / Sub) -10/Mines (discovered 3 exits: *Mat x2 / *Sub) -9/Materials (discovered 4 exits: *Mat x3 / *Min) -9/Mines (discovered 3 exits: *Mat x2 / *Exi) -9/Exiles -8/Mines -8/Materials (discovered 4 exits: *Fac x3 / Gar) -8/Garrison (discovered 3 exits: *Mat x3) -8/Materials (discovered 3 exits: *Fac x3) -7/Factory (discovered 4 exits: Fac / Sto / Low / Gar) -7/Garrison (discovered 3 exits: *Fac x3) -7/Factory -7/Garrison (discovered 3 exits: *Fac x3) -6/Factory -6/Garrison (discovered 3 exits: *Fac x3) -6/Factory -6/Lower Caves -6/Lower Caves (discovered 2 exits: *Fac / *Zio) -6/Zion -5/Proximity Caves -5/Factory (discovered 4 exits: *Fac x2 / *Upp x2) -5/Upper Caves -5/Upper Caves (discovered 2 exits: *Fac / *Zhi) -5/Zhirov -4/Proximity Caves -4/Factory (discovered 5 exits: Res / *Upp x2 / Ext x2) -4/Waste -4/Factory (discovered 4 exits: *Upp x2 / Ext x2) -4/Upper Caves -4/Upper Caves -4/Warlord -3/Proximity Caves -3/Research (discovered 5 exits: *Res x2 / Arm / *Tes x2) -3/Testing -2/Research (discovered 3 exits: *Acc / *Qua x2) -2/Quarantine (discovered 3 exits: *Acc / [*Sec] / *Frg) -2/Protoforge -1/Access -1/Command (discovered 2 exits: Sur x2) By MAIN.C's Side History --------- Turn | Location | Event 11 | -11/Scrapyard | Discovered new exit (range 16) 93 | -11/Scrapyard | Entered Materials 306 | -10/Materials | Build established: Mutant 963 | -10/Materials | Discovered new exit (range 15) 1181 | -10/Materials | Discovered new exit (range 15) 1513 | -10/Materials | Discovered new exit (range 15) 2109 | -10/Materials | Discovered new exit (range 14) 2200 | -10/Materials | Learned location of Mines (-9) 2256 | -10/Materials | Identified exit to Subcaves 2304 | -10/Materials | Identified exit to Materials 2343 | -10/Materials | Learned Storage stockpile data 2372 | -10/Materials | Loaded intel: 23 non-interactive machine locations 2393 | -10/Materials | Learned location of 3 exits from Materials 2403 | -10/Materials | Learned location of Storage (-7) 2423 | -10/Materials | Learned Storage stockpile data 2495 | -10/Materials | Learned 4 Recycling zone layouts 2544 | -10/Materials | Learned 4 Recycling zone layouts 2592 | -10/Materials | Entered Mines 2777 | -10/Mines | Discovered exit to Materials (range 8) 2859 | -10/Mines | Assisted by bots powering up and referring to "LRC-V3" 2924 | -10/Mines | Found a hidden stash of uninstalled traps 3139 | -10/Mines | Learned Materials trap positions 3478 | -10/Mines | Discovered exit to Subcaves (range 5) 3636 | -10/Mines | A weapon hastily lodged in a ceiling crevice suddenly fell to the ground 3653 | -10/Mines | Learned Materials terminal intel 3682 | -10/Mines | Discovered exit to Materials (range 5) 4044 | -10/Mines | Entered Materials 4044 | -9/Materials | Accompanied by 2 allies 4044 | -9/Materials | Evolved 2 slots: Propulsion x1, Utility x1 4045 | -9/Materials | Identified exit to Mines 4045 | -9/Materials | Identified exit to Materials 4046 | -9/Materials | Loaded intel: 23 trap records 4047 | -9/Materials | Loaded intel: 12 terminal locations 4338 | -9/Materials | Repaired Seismic Detector 4588 | -9/Materials | Build established: Scavenger-Mutant 5026 | -9/Materials | Discovered exit to Materials (range 15) 5798 | -9/Materials | Learned Materials terminal intel 5957 | -9/Materials | Learned location of 1 exit from Storage 5983 | -9/Materials | Repaired Broken Imp. Flight Unit 5989 | -9/Materials | Learned Storage trap positions 6011 | -9/Materials | Learned Storage trap positions 6024 | -9/Materials | Learned location of 2 exits from Materials 6049 | -9/Materials | Learned location of 3 exits from Materials 6086 | -9/Materials | Learned Storage interactive machine intel 6134 | -9/Materials | Learned location of 3 exits from Materials 6192 | -9/Materials | Learned location of Zion (-6) 6320 | -9/Materials | Entered Mines 6537 | -9/Mines | Found a Scrap Suit stashed away for nefarious purposes 6569 | -9/Mines | Deemed a non-threat by the Exiles lab entrance 7108 | -9/Mines | Identified exit to Exiles 7137 | -9/Mines | Received a Mining Laser from a helpful Derelict 7401 | -9/Mines | Entered Exiles 7401 | -9/Exiles | Accompanied by 1 ally 7440 | -9/Exiles | Met 8R-AWN 7465 | -9/Exiles | Met EX-HEX 7541 | -9/Exiles | Met EX-DEC 7619 | -9/Exiles | Discovered new exit (range 10) 7633 | -9/Exiles | Entered Mines 7959 | -8/Mines | Core integrity fell below 50% 8394 | -8/Mines | Discovered exit to Materials (range 13) 8588 | -8/Mines | Entered Materials 8588 | -8/Materials | Evolved 2 slots: Propulsion x1, Utility x1 8589 | -8/Materials | Identified exit to Factory 8590 | -8/Materials | Loaded intel: 12 terminal locations 9334 | -8/Materials | Central database locked down 10063 | -8/Materials | Learned 2 Lower Caves zone layouts 10133 | -8/Materials | Learned Storage stockpile data 10151 | -8/Materials | Learned location of Extension (-4) 10157 | -8/Materials | Learned 8 Factory zone layouts 10206 | -8/Materials | Identified exit to Garrison 10242 | -8/Materials | Entered Garrison 10294 | -8/Garrison | Triggered checkpoint 10338 | -8/Garrison | Garrison Relay disabled 10411 | -8/Garrison | Triggered checkpoint 10421 | -8/Garrison | Triggered checkpoint 10511 | -8/Garrison | Triggered checkpoint 10565 | -8/Garrison | Destroyed 9 combat bots 10724 | -8/Garrison | Triggered checkpoint 10847 | -8/Garrison | Phase Generator disabled 10903 | -8/Garrison | Lost 3 parts (3w) 11050 | -8/Garrison | Garrison Relay disabled 11148 | -8/Garrison | Triggered checkpoint 11177 | -8/Garrison | Garrison Relay disabled 11188 | -8/Garrison | Learned Materials security intel 11220 | -8/Garrison | Build established: Mutant 11260 | -8/Garrison | Discovered new exit (range 13) 11545 | -8/Garrison | Core integrity fell below 50% 11672 | -8/Garrison | Triggered checkpoint 11688 | -8/Garrison | Garrison Relay disabled 11755 | -8/Garrison | Discovered new exit (range 12) 11814 | -8/Garrison | Lost 3 allies 12031 | -8/Garrison | Garrison Relay disabled 12043 | -8/Garrison | Discovered new exit (range 15) 12184 | -8/Garrison | Entered Materials 12635 | -8/Materials | Garrison activated, responded to threat 12649 | -8/Materials | Core integrity fell below 20% 12702 | -8/Materials | Lost 7 parts (1p4n2u) 12722 | -8/Materials | Destroyed 8 combat bots 12853 | -8/Materials | Entered Factory 12853 | -7/Factory | Evolved 2 slots: Utility x2 12854 | -7/Factory | Identified exit to Lower Caves 12855 | -7/Factory | Identified exit to Factory 12855 | -7/Factory | Identified exit to Storage 13019 | -7/Factory | Build established: Scavenger-Mutant 13039 | -7/Factory | Identified exit to Garrison 13039 | -7/Factory | Entered Garrison 13387 | -7/Garrison | Triggered checkpoint 13418 | -7/Garrison | Garrison Relay disabled 13457 | -7/Garrison | Triggered checkpoint 13463 | -7/Garrison | Triggered checkpoint 13507 | -7/Garrison | Triggered checkpoint 13587 | -7/Garrison | Triggered checkpoint 13648 | -7/Garrison | Garrison Relay disabled 13739 | -7/Garrison | Triggered checkpoint 13751 | -7/Garrison | Discovered new exit (range 11) 13839 | -7/Garrison | Triggered checkpoint 13936 | -7/Garrison | Triggered checkpoint 13955 | -7/Garrison | Discovered new exit (range 11) 13997 | -7/Garrison | Triggered checkpoint 14056 | -7/Garrison | Garrison Relay disabled 14124 | -7/Garrison | Triggered checkpoint 14150 | -7/Garrison | Garrison Relay disabled 14154 | -7/Garrison | Garrison Relay disabled 14307 | -7/Garrison | Triggered checkpoint 14328 | -7/Garrison | Garrison Relay disabled 14352 | -7/Garrison | Discovered new exit (range 14) 14429 | -7/Garrison | Entered Factory 14429 | -7/Factory | Accompanied by 3 allies 14450 | -7/Factory | Garrison activated, responded to threat 14497 | -7/Factory | Lost 3 allies 14549 | -7/Factory | Identified exit to Garrison 14549 | -7/Factory | Entered Garrison 14579 | -7/Garrison | Triggered checkpoint 14623 | -7/Garrison | Garrison Relay disabled 14736 | -7/Garrison | Triggered checkpoint 14737 | -7/Garrison | Triggered checkpoint 14831 | -7/Garrison | Core integrity fell below 50% 14859 | -7/Garrison | Lost 7 parts (3n3u1w) 15069 | -7/Garrison | Triggered checkpoint 15122 | -7/Garrison | Garrison Relay disabled 15158 | -7/Garrison | Discovered exit to Factory (range 3) 15432 | -7/Garrison | Discovered exit to Factory (range 10) 15473 | -7/Garrison | Triggered checkpoint 15487 | -7/Garrison | System corruption reached 10% 15526 | -7/Garrison | Garrison Relay disabled 15681 | -7/Garrison | Triggered checkpoint 15753 | -7/Garrison | Garrison Relay disabled 15957 | -7/Garrison | Garrison Relay disabled 15965 | -7/Garrison | Triggered checkpoint 16046 | -7/Garrison | Triggered checkpoint 16069 | -7/Garrison | Discovered exit to Factory (range 10) 16385 | -7/Garrison | Triggered checkpoint 16395 | -7/Garrison | Core integrity fell below 20% 16891 | -7/Garrison | Entered Factory 16891 | -6/Factory | Accompanied by 3 allies 16891 | -6/Factory | Evolved 2 slots: Power x1, Weapon x1 16935 | -6/Factory | Identified exit to Garrison 16938 | -6/Factory | Entered Garrison 16938 | -6/Garrison | Accompanied by 3 allies 17045 | -6/Garrison | Triggered checkpoint 17089 | -6/Garrison | Garrison Relay disabled 17151 | -6/Garrison | Triggered checkpoint 17199 | -6/Garrison | Build established: Scavenger-Tank 17264 | -6/Garrison | Triggered checkpoint 17313 | -6/Garrison | Garrison Relay disabled 17360 | -6/Garrison | Discovered new exit (range 10) 17529 | -6/Garrison | Triggered checkpoint 17592 | -6/Garrison | Lost 9 parts (1p1n4u3w) 17596 | -6/Garrison | Destroyed 8 combat bots 17772 | -6/Garrison | Triggered checkpoint 17802 | -6/Garrison | Garrison Relay disabled 17949 | -6/Garrison | Discovered new exit (range 4) 18015 | -6/Garrison | Phase Generator disabled 18144 | -6/Garrison | Triggered checkpoint 18228 | -6/Garrison | Triggered checkpoint 18252 | -6/Garrison | Garrison Relay disabled 18386 | -6/Garrison | Discovered new exit (range 13) 18407 | -6/Garrison | Entered Factory 18473 | -6/Factory | Garrison activated, responded to threat 18545 | -6/Factory | Lost 5 parts (3u2w) 18635 | -6/Factory | Discovered new exit (range 7) 18661 | -6/Factory | Identified exit to Lower Caves 19107 | -6/Factory | First assault squad dispatched 19163 | -6/Factory | Entered Lower Caves 19164 | -6/Lower Caves | Encountered a Warlord checkpoint 19169 | -6/Lower Caves | Met a Warlord Commander 19170 | -6/Lower Caves | Learned location of Warlord (-4) 19171 | -6/Lower Caves | Warlord Commander delivered Encrypted Comm Array 19178 | -6/Lower Caves | Found Encrypted Comm Array 19416 | -6/Lower Caves | Build established: Scavenger-Mutant 19826 | -6/Lower Caves | Build established: Scavenger-Tank 20124 | -6/Lower Caves | Learned Factory interactive machine intel 20338 | -6/Lower Caves | Discovered new exit (range 7) 20349 | -6/Lower Caves | Identified exit to Lower Caves 20841 | -6/Lower Caves | Entered another Lower Caves area 20849 | -6/Lower Caves | Discovered new exit (range 7) 20902 | -6/Lower Caves | Identified exit to Factory 22649 | -6/Lower Caves | Discovered new exit (range 14) 22689 | -6/Lower Caves | Identified exit to Zion 22720 | -6/Lower Caves | Entered Zion 22802 | -6/Zion | System corruption cleaned by Quarantine Array 22858 | -6/Zion | Discovered new exit (range 12) 22877 | -6/Zion | Gained Derelict followers 23167 | -6/Zion | Learned 8 Factory zone layouts 23412 | -6/Zion | Met Imprinter 23668 | -6/Zion | Learned Factory terminal intel 23820 | -6/Zion | Learned Factory emergency access door positions 24078 | -6/Zion | Found Prototype Special Weapon 24078 | -6/Zion | Identified RU-N14's Throwing Claymores 24083 | -6/Zion | Found RU-N14's Throwing Claymores 24610 | -6/Zion | Found Prototype Energy Gun 24772 | -6/Zion | Found RU-N14's Throwing Claymores 24840 | -6/Zion | Identified exit to Proximity Caves 24844 | -6/Zion | Entered Proximity Caves 24844 | -5/Proximity Caves | Accompanied by 3 allies 24986 | -5/Proximity Caves | Learned Factory security intel 25006 | -5/Proximity Caves | Spotter reported a threat 25284 | -5/Proximity Caves | Learned location of 1 exit from Factory 25675 | -5/Proximity Caves | Discovered exit to Factory (range 9) 25906 | -5/Proximity Caves | Entered Factory 25906 | -5/Factory | Evolved 2 slots: Utility x1, Weapon x1 25907 | -5/Factory | Identified exit to Upper Caves 25908 | -5/Factory | Identified exit to Factory 25911 | -5/Factory | Loaded intel: 54 interactive machine locations 25912 | -5/Factory | Loaded intel: 26 terminal locations 26751 | -5/Factory | Discovered exit to Factory (range 8) 26930 | -5/Factory | Cargo convoy interrupted 27016 | -5/Factory | Lost 5 allies 27556 | -5/Factory | Entered Upper Caves 27558 | -5/Upper Caves | Identified Storm Laser 27610 | -5/Upper Caves | Learned location of 1 exit from Factory 28350 | -5/Upper Caves | Acquired the password to a Derelict Tinkerer's latest research 28359 | -5/Upper Caves | Found Prototype Special Weapon 28898 | -5/Upper Caves | Learned Factory stockpile data 29077 | -5/Upper Caves | Discovered new exit (range 10) 29183 | -5/Upper Caves | Identified exit to Upper Caves 29184 | -5/Upper Caves | Entered another Upper Caves area 29285 | -5/Upper Caves | Discovered exit to Factory (range 9) 30566 | -5/Upper Caves | Learned location of 1 exit from Factory 30586 | -5/Upper Caves | Attracted the attention of an 0b10 outpost 30996 | -5/Upper Caves | Discovered new exit (range 13) 31021 | -5/Upper Caves | Attracted the attention of an 0b10 checkpoint 31071 | -5/Upper Caves | Learned location of 1 exit from Factory 31074 | -5/Upper Caves | Identified exit to Zhirov 31095 | -5/Upper Caves | Entered Zhirov 31095 | -5/Zhirov | Discovered new exit (range 3) 31099 | -5/Zhirov | Identified exit to Proximity Caves 31127 | -5/Zhirov | Met Zhirov 31162 | -5/Zhirov | Found Alien Artifact 31162 | -5/Zhirov | Identified Integrated Reactor 31162 | -5/Zhirov | Installed Integrated Reactor, increased core energy generation (+10) 31181 | -5/Zhirov | Found Alien Artifact 31351 | -5/Zhirov | Learned location of Command (-1) 31351 | -5/Zhirov | Learned location of Testing (-3) 31351 | -5/Zhirov | Learned location of Quarantine (-2) 31365 | -5/Zhirov | Zhirov requested help retrieving the SGEMP Prototype 31413 | -5/Zhirov | Entered Proximity Caves 31525 | -4/Proximity Caves | Encountered a Derelict sapper outpost 31613 | -4/Proximity Caves | Destroyed 8 combat bots 31873 | -4/Proximity Caves | Build established: Tank 32032 | -4/Proximity Caves | Discovered exit to Factory (range 10) 32351 | -4/Proximity Caves | Build established: Scavenger-Tank 32388 | -4/Proximity Caves | Attracted the attention of an 0b10 checkpoint 32732 | -4/Proximity Caves | Attracted the attention of an 0b10 outpost 32775 | -4/Proximity Caves | Entered Factory 32775 | -4/Factory | Evolved 2 slots: Propulsion x2 32776 | -4/Factory | Identified exit to Upper Caves 32776 | -4/Factory | Identified exit to Extension 32776 | -4/Factory | Identified exit to Research 32799 | -4/Factory | Lost 4 parts (1p1n1u1w) 33057 | -4/Factory | Build established: Derelict-Tank 33251 | -4/Factory | Spotted B-86 Titan 33307 | -4/Factory | Destroyed 7 combat bots 33537 | -4/Factory | Repaired Adv. Sensor Array 33593 | -4/Factory | Repaired Imp. Cooling System 33854 | -4/Factory | Build established: Hacker-Skirmisher 34025 | -4/Factory | Search patrols dispatched 34221 | -4/Factory | Manually triggered Chute Trap 34221 | -4/Factory | Sucked down chute 34221 | -4/Factory | Entered Waste 34222 | -4/Waste | Met a frightened Derelict 34230 | -4/Waste | Spotted C-40 Crusher 34282 | -4/Waste | Spotted C-40 Crusher 34286 | -4/Waste | Spotted C-40 Crusher 34287 | -4/Waste | Spotted C-40 Crusher 34318 | -4/Waste | Spotted C-40 Crusher 34341 | -4/Waste | Spotted C-40 Crusher 34346 | -4/Waste | Warlord forces began an assault 34350 | -4/Waste | Allies destroyed C-40 Crusher 34351 | -4/Waste | Allies destroyed C-40 Crusher 34370 | -4/Waste | Allies destroyed C-40 Crusher 34372 | -4/Waste | Allies destroyed C-40 Crusher 34372 | -4/Waste | Allies destroyed C-40 Crusher 34381 | -4/Waste | Allies destroyed C-40 Crusher 34405 | -4/Waste | Discovered new exit (range 12) 34409 | -4/Waste | Lost 4 allies 34454 | -4/Waste | Identified exit to Factory 34492 | -4/Waste | Entered Factory 34492 | -4/Factory | Accompanied by 15 allies 34555 | -4/Factory | Lost 3 allies 34676 | -4/Factory | Fabricated Cld. Gravmag System (x1) 34737 | -4/Factory | Fabricated Cld. Gravmag System (x1) 34794 | -4/Factory | Fabricated Cld. Gravmag System (x1) 34829 | -4/Factory | Lost 8 allies 34891 | -4/Factory | Fabricated Cmb. Linear Gravjet (x2) 35092 | -4/Factory | System corruption reached 10% 35141 | -4/Factory | Crushed by falling debris 35156 | -4/Factory | Entered Upper Caves 35175 | -4/Upper Caves | Lost 7 parts (2p2n2u1w) 35241 | -4/Upper Caves | Identified exit to Upper Caves 35293 | -4/Upper Caves | Attacked by a delusional Derelict stockpiling parts 35295 | -4/Upper Caves | Entered another Upper Caves area 35332 | -4/Upper Caves | Entered an active Warlord outpost 35346 | -4/Upper Caves | Learned Armory security intel 35346 | -4/Upper Caves | Learned Factory security intel 35346 | -4/Upper Caves | Learned 8 Research zone layouts 35428 | -4/Upper Caves | A Commander dispatched an escort 35437 | -4/Upper Caves | Build established: Hacker-Mutant 35475 | -4/Upper Caves | Encountered a Warlord checkpoint 35496 | -4/Upper Caves | Learned Research terminal intel 35501 | -4/Upper Caves | Discovered new exit (range 7) 35503 | -4/Upper Caves | Entered Warlord 35515 | -4/Warlord | System corruption cleaned by Quarantine Array 35604 | -4/Warlord | Met Warlord 35629 | -4/Warlord | Warlord's base attacked by MAIN.C 35689 | -4/Warlord | Found Prototype Energy Cannon 35689 | -4/Warlord | Identified Vortex Driver 35698 | -4/Warlord | Found Vortex Driver 35738 | -4/Warlord | Found Prototype Processor 35738 | -4/Warlord | Identified Exp. Armor Integrity Analyzer 35745 | -4/Warlord | Found Prototype Hackware 35866 | -4/Warlord | Found Prototype Special Weapon 35866 | -4/Warlord | Identified RU-N14's Throwing Claymores v3 35868 | -4/Warlord | Found RU-N14's Throwing Claymores v3 35870 | -4/Warlord | Found RU-N14's Throwing Claymores v3 35902 | -4/Warlord | Spotted B-86 Titan 35903 | -4/Warlord | Spotted B-90 Cyclops 35905 | -4/Warlord | Destroyed B-90 Cyclops 35910 | -4/Warlord | Destroyed B-86 Titan 35929 | -4/Warlord | Build established: Hacker-Skirmisher 35979 | -4/Warlord | Warlord forces counterattacked 36000 | -4/Warlord | Spotted Striker 36012 | -4/Warlord | Destroyed 7 combat bots 36051 | -4/Warlord | Lost 5 allies 36054 | -4/Warlord | Spotted Striker 36106 | -4/Warlord | Spotted Striker 36107 | -4/Warlord | Spotted Executioner 36116 | -4/Warlord | Spotted Executioner 36134 | -4/Warlord | Discovered new exit (range 12) 36138 | -4/Warlord | Entered Proximity Caves 36148 | -3/Proximity Caves | Lost 8 allies 36469 | -3/Proximity Caves | Discovered exit to Research (range 17) 36493 | -3/Proximity Caves | Entered Research 36493 | -3/Research | Evolved 2 slots: Propulsion x1, Utility x1 36494 | -3/Research | Identified exit to Research 36494 | -3/Research | Identified exit to Testing 36495 | -3/Research | Loaded intel: 23 terminal locations 36546 | -3/Research | Discovered exit to Research (range 11) 36638 | -3/Research | Identified exit to Armory 36706 | -3/Research | Fabricated Cmb. Linear Gravjet (x2) 36811 | -3/Research | Entered Testing 36813 | -3/Testing | Build established: Hacker-Sprinter 36819 | -3/Testing | Found Prototype Energy Gun 36819 | -3/Testing | Identified Hyp. EM Gauss Rifle 36827 | -3/Testing | Spotted PX-HLY4DS1IFR 36852 | -3/Testing | Found Prototype Energy Cannon 36852 | -3/Testing | Identified Potential Cannon 36911 | -3/Testing | Found Prototype Launcher 36911 | -3/Testing | Identified Com. Tesla Bomb Launcher 36938 | -3/Testing | Found Prototype Energy Cannon 36938 | -3/Testing | Identified Hpw. Disruptor Cannon 37136 | -3/Testing | Entered Research 37136 | -2/Research | Accompanied by 1 ally 37136 | -2/Research | Warlord forces began assault on 0b10 37136 | -2/Research | Evolved 2 slots: Propulsion x1, Utility x1 37145 | -2/Research | Identified System Mapper 37146 | -2/Research | Identified exit to Quarantine 37161 | -2/Research | Distinguished unit "Vikings" dispatched to help 37161 | -2/Research | Distinguished unit "Knights of the Pentagonal Table" dispatched to help 37185 | -2/Research | Build established: Hacker-Scout 37246 | -2/Research | Research machine network offline 37347 | -2/Research | Found Prototype Processor 37347 | -2/Research | Identified Spectral Analyzer 37354 | -2/Research | Found Prototype Hackware 37354 | -2/Research | Identified Exp. Hacking Suite 37456 | -2/Research | Met up with Warlord 37459 | -2/Research | Discovered new exit (range 14) 37463 | -2/Research | Identified exit to Access 37537 | -2/Research | Spotted B-90 Cyclops 37605 | -2/Research | Spotted Striker 37640 | -2/Research | Build established: Wizard-Scout 37700 | -2/Research | Spotted Striker 37884 | -2/Research | Borebot progress halted 37900 | -2/Research | Spotted Executioner 37980 | -2/Research | Spotted Striker 38022 | -2/Research | Spotted Striker 38071 | -2/Research | Build established: Hacker-Scout 38227 | -2/Research | Warlord invited to help at Command 38227 | -2/Research | Given Cave Seal Controls access code 38334 | -2/Research | Entered Quarantine 38334 | -2/Quarantine | Accompanied by 2 allies 38352 | -2/Quarantine | Cryocooling Duct disabled 38367 | -2/Quarantine | Ambient heat levels rising (+20) 38367 | -2/Quarantine | Non-combat units ordered to evacuate 38405 | -2/Quarantine | Found Alien Artifact 38460 | -2/Quarantine | Repaired Cmb. Linear Gravjet 38483 | -2/Quarantine | Repaired Imp. Medium Armor Plating 38525 | -2/Quarantine | Discovered exit to Access (range 12) 38589 | -2/Quarantine | Spotted Fortress 38606 | -2/Quarantine | Discovered new exit (range 5) 38606 | -2/Quarantine | Discovered new exit (range 6) 38607 | -2/Quarantine | Identified exit to Protoforge 38612 | -2/Quarantine | Entered Protoforge 38728 | -2/Protoforge | Superfortress began startup sequence 38743 | -2/Protoforge | Spotted Hotshot 38743 | -2/Protoforge | Spotted Hotshot 38743 | -2/Protoforge | Spotted Hotshot 38743 | -2/Protoforge | Spotted Hotshot 38756 | -2/Protoforge | Discovered exit to Access (range 18) 38831 | -2/Protoforge | Identified Transdimensional Reconstructor 38857 | -2/Protoforge | Found Prototype Device 38923 | -2/Protoforge | Lost 4 parts (3u1w) 38933 | -2/Protoforge | Destroyed 7 combat bots 38957 | -2/Protoforge | Spotted Immortal 38960 | -2/Protoforge | Spotted Immortal 39050 | -2/Protoforge | Destroyed Immortal 39053 | -2/Protoforge | Found Corrupted Cep. Antimissile System 39070 | -2/Protoforge | Destroyed Immortal 39072 | -2/Protoforge | Spotted Decapitator 39072 | -2/Protoforge | Spotted Decapitator 39073 | -2/Protoforge | Found Corrupted Cep. Antimissile System 39083 | -2/Protoforge | Found Prototype Protection 39083 | -2/Protoforge | Identified Cep. Core Shell 39089 | -2/Protoforge | Found Faulty Cep. Reaction Jets 39092 | -2/Protoforge | Found Faulty Cep. Reaction Jets 39093 | -2/Protoforge | Identified Crosscalibrator 39096 | -2/Protoforge | Found Faulty Exp. Remote Shield 39097 | -2/Protoforge | Found Faulty Exp. Remote Shield 39183 | -2/Protoforge | Destroyed Decapitator 39190 | -2/Protoforge | Lost 4 parts (2n1u1w) 39206 | -2/Protoforge | Destroyed Decapitator 39223 | -2/Protoforge | Build established: Hacker-Sprinter 39320 | -2/Protoforge | Spotted Decapitator 39321 | -2/Protoforge | Spotted Decapitator 39321 | -2/Protoforge | Spotted Decapitator 39321 | -2/Protoforge | Spotted V898-n 39330 | -2/Protoforge | Found Prototype Power Core 39330 | -2/Protoforge | Identified Cep. Zero-point Core 39335 | -2/Protoforge | Found Cep. Zero-point Core 39338 | -2/Protoforge | Found Cep. Zero-point Core 39351 | -2/Protoforge | Found Faulty Cep. Zero-point Core 39362 | -2/Protoforge | First assault squad dispatched 39419 | -2/Protoforge | Forge Plexus network access discovered 39424 | -2/Protoforge | Spotted V892-d 39502 | -2/Protoforge | Destroyed V892-d 39515 | -2/Protoforge | System corruption reached 10% 39519 | -2/Protoforge | Spotted V094-j 39544 | -2/Protoforge | Spotted V395-t 39554 | -2/Protoforge | Spotted V625-q 39556 | -2/Protoforge | Warped through subspace 39622 | -2/Protoforge | Found Cep. Tactical Fusion Warhead 39624 | -2/Protoforge | Found Faulty Cep. Rapid Grenade Launcher 39625 | -2/Protoforge | Found Cep. Tactical Fusion Warhead 39780 | -2/Protoforge | Spotted V226-y 39784 | -2/Protoforge | Found Cep. NT7 Matterbank 39787 | -2/Protoforge | Found Faulty Cep. Matter Streamer 39788 | -2/Protoforge | Found Cep. Chromion Battery 39790 | -2/Protoforge | Found Cep. Matter Streamer 39794 | -2/Protoforge | Spotted V511-n 39794 | -2/Protoforge | Spotted V682-f 39801 | -2/Protoforge | Found Cep. Antigrav Storage Unit 39805 | -2/Protoforge | Found Cep. Chromion Battery 39806 | -2/Protoforge | Found Cep. NT7 Matterbank 39809 | -2/Protoforge | Found Cep. Chromion Battery 39835 | -2/Protoforge | Spotted Decapitator 39839 | -2/Protoforge | Destroyed Decapitator 39864 | -2/Protoforge | Found Cep. Weapon Articulator 39872 | -2/Protoforge | Spotted V462-h 39877 | -2/Protoforge | Found Exp. Kinecellerator 39929 | -2/Protoforge | System corruption reached 30% 39953 | -2/Protoforge | Found Cep. Deflector Sword 39955 | -2/Protoforge | Found Faulty Cep. Lightning Penetrator 39956 | -2/Protoforge | Found Faulty Cep. Lightning Penetrator 39960 | -2/Protoforge | Found Cep. Heavy Railcannon 39963 | -2/Protoforge | Found Cep. Plasma Driver 39974 | -2/Protoforge | Found Cep. Plasma Driver 39981 | -2/Protoforge | Found Cep. Plasma Driver 39992 | -2/Protoforge | Additional patrols dispatched to research labs 40057 | -2/Protoforge | Found Cep. Nanofilaments [Polyglass] 40067 | -2/Protoforge | Found Cep. Navigation Harness 40076 | -2/Protoforge | Found Transdimensional Reconstructor 40101 | -2/Protoforge | Spotted AP7-3 40109 | -2/Protoforge | Spotted AP7-3 40135 | -2/Protoforge | Destroyed AP7-3 40166 | -2/Protoforge | Destroyed AP7-3 40174 | -2/Protoforge | Found Cep. Helical Railcannon 40183 | -2/Protoforge | Found Cep. Helical Railcannon 40197 | -2/Protoforge | Lost 4 parts (2u2w) 40207 | -2/Protoforge | Identified Subatomic Replicator 40207 | -2/Protoforge | Used Subatomic Replicator to replicate Faulty Cep. Cloak Mesh 40208 | -2/Protoforge | Found Faulty Cep. Cloak Mesh 40212 | -2/Protoforge | Found Cep. Core Analysis Suite 40214 | -2/Protoforge | Found Cep. Thermoelectric Network 40217 | -2/Protoforge | Found Cep. Thermoelectric Network 40261 | -2/Protoforge | Spotted V634-j 40261 | -2/Protoforge | Spotted V355-g 40262 | -2/Protoforge | Spotted V077-e 40265 | -2/Protoforge | Spotted Immortal 40265 | -2/Protoforge | Spotted Immortal 40331 | -2/Protoforge | Destroyed Immortal 40342 | -2/Protoforge | Destroyed Immortal 40345 | -2/Protoforge | Spotted V233-h 40345 | -2/Protoforge | Found Exp. Active Sensor Suite 40350 | -2/Protoforge | Found Cep. Network Penetrator 40366 | -2/Protoforge | Core integrity fell below 50% 40383 | -2/Protoforge | Destroyed 10 combat bots 40424 | -2/Protoforge | Spotted V050-t 40431 | -2/Protoforge | Found Cep. Gyrokinetic System 40454 | -2/Protoforge | Found Cep. Gyrokinetic System 40470 | -2/Protoforge | Core integrity fell below 20% 40491 | -2/Protoforge | Lost 13 parts (2p6n1u4w) 40521 | -2/Protoforge | Found Cep. RG22 Armor 40529 | -2/Protoforge | Found Faulty Cep. RG22 Armor 40583 | -2/Protoforge | Found Cep. Core Shell 40724 | -2/Protoforge | Spotted Hotshot 40763 | -2/Protoforge | Spotted Hotshot 40767 | -2/Protoforge | Spotted Hotshot 40767 | -2/Protoforge | Spotted Hotshot 40772 | -2/Protoforge | Spotted Hotshot 40772 | -2/Protoforge | Spotted Hotshot 40780 | -2/Protoforge | Entered Access 40780 | -1/Access | Evolved 2 slots: Utility x2 40902 | -1/Access | Garrison activated, responded to threat 40914 | -1/Access | P-80 Master assimilated allied XV-30I(i) 40955 | -1/Access | Lost 5 allies 40997 | -1/Access | Build established: Scout 41015 | -1/Access | Identified exit to Command 41246 | -1/Access | Lost 4 parts (2n2w) 41271 | -1/Access | Entered Command 41307 | -1/Command | Build established: Hacker-Scout 41326 | -1/Command | Disengaged cave seal 41326 | -1/Command | Derelicts emerged from the dark tunnel 41326 | -1/Command | Welcomed Warlord to Command 41389 | -1/Command | Repaired Cmb. Linear Gravjet 41439 | -1/Command | Spotted M Guard 41439 | -1/Command | Spotted M Guard 41440 | -1/Command | Spotted Combat Programmer 41441 | -1/Command | Warlord commented on Warlord statues 41441 | -1/Command | Spotted Combat Programmer 41456 | -1/Command | Destroyed Combat Programmer 41496 | -1/Command | All MAIN.C guards destroyed 41502 | -1/Command | Found Prototype Energy Cannon 41515 | -1/Command | Lost 12 allies 41521 | -1/Command | First assault squad dispatched 41611 | -1/Command | Met MAIN.C 41635 | -1/Command | 0b10 Conduit disabled 41641 | -1/Command | Warlord shut down involuntarily 41644 | -1/Command | Surrendered to MAIN.C 41644 | -1/Command | Loaded intel: 47 machine locations 41644 | -1/Command | Loaded intel: 94 trap records 41644 | -1/Command | Identified exit to Surface 41644 | -1/Command | Discovered exit to Surface (range 94) 41644 | -1/Command | Discovered exit to Surface (range 34) 41644 | -1/Command | Spotted QZ-7KJ(L) 41644 | -1/Command | Spotted BI-9BI(H) 41646 | -1/Command | Spotted 0E-KUC(H) 41657 | -1/Command | Destroyed QZ-7KJ(L) 41665 | -1/Command | Identified Cld. Nova Cannon 41666 | -1/Command | Spotted RI-2IK(H) 41698 | -1/Command | Found Prototype Reactor 41699 | -1/Command | Found Prototype Device 41699 | -1/Command | Identified Exp. Transmission Jammer 41702 | -1/Command | Found Prototype Device 41702 | -1/Command | Identified Exp. Focal Shield 41704 | -1/Command | Found Prototype Device 41704 | -1/Command | Identified Exp. ECM Suite 41706 | -1/Command | Found Prototype Device 41706 | -1/Command | Identified Exp. System Purifier 41708 | -1/Command | Found Exp. Armor Integrity Analyzer 41723 | -1/Command | Found Prototype Reactor 41736 | -1/Command | Installed Cep. Nanofilaments [Polyglass], 3 resistances modified: KI -10%, TH +20%, EX -50% 41742 | -1/Command | MAIN.C activated Command garrisons 41779 | -1/Command | Unknown forces attacked Command 41779 | -1/Command | Spotted EQ-005 41779 | -1/Command | Spotted EQ-000 41779 | -1/Command | Spotted EQ-001 41779 | -1/Command | Spotted EQ-006 41779 | -1/Command | Spotted EQ-003 41779 | -1/Command | Spotted EQ-002 41781 | -1/Command | Spotted EQ-004 41801 | -1/Command | Identified Vortex Chain Reactor (x2) 41808 | -1/Command | Destroyed EQ-006 41819 | -1/Command | Destroyed EQ-003 41822 | -1/Command | Destroyed EQ-000 41836 | -1/Command | Found Prototype Processor 41836 | -1/Command | Identified Exp. Core Analyzer 41845 | -1/Command | Lost 10 parts (1p2n3u4w) 41855 | -1/Command | Spotted EQ-009 41856 | -1/Command | Spotted EQ-012 41856 | -1/Command | Spotted EQ-016 41857 | -1/Command | Destroyed EQ-009 41859 | -1/Command | Lost 4 allies 41869 | -1/Command | Spotted EQ-018 41869 | -1/Command | Spotted EQ-022 41869 | -1/Command | Spotted EQ-020 41869 | -1/Command | Spotted EQ-019 41869 | -1/Command | Spotted EQ-021 41878 | -1/Command | Destroyed EQ-021 41879 | -1/Command | Spotted EQ-035 41882 | -1/Command | Core integrity fell below 50% 41891 | -1/Command | Destroyed EQ-019 41901 | -1/Command | Destroyed EQ-020 41913 | -1/Command | Destroyed EQ-022 41917 | -1/Command | Lost 6 allies 41938 | -1/Command | System corruption reached 10% 41943 | -1/Command | Lost 5 parts (3n2w) 41943 | -1/Command | Destroyed EQ-035 41981 | -1/Command | Spotted EQ-039 41981 | -1/Command | Spotted EQ-041 41981 | -1/Command | Spotted EQ-040 42000 | -1/Command | Spotted EQ-038 42000 | -1/Command | Spotted EQ-024 42025 | -1/Command | Destroyed EQ-038 42031 | -1/Command | Spotted EQ-028 42032 | -1/Command | Spotted EQ-026 42058 | -1/Command | Spotted EQ-046 42063 | -1/Command | Destroyed EQ-046 42072 | -1/Command | Lost 4 parts (1p1u2w) 42084 | -1/Command | Spotted EQ-057 42085 | -1/Command | Spotted EQ-043 42090 | -1/Command | Found Exp. Core Analyzer 42098 | -1/Command | Spotted EQ-081 42140 | -1/Command | Destroyed EQ-043 42154 | -1/Command | Destroyed EQ-081 42181 | -1/Command | Lost 19 allies 42199 | -1/Command | Spotted EQ-085 42199 | -1/Command | Spotted EQ-084 42199 | -1/Command | Spotted EQ-086 42204 | -1/Command | Spotted EQ-102 42212 | -1/Command | Destroyed EQ-084 42216 | -1/Command | Spotted EQ-090 42219 | -1/Command | Spotted EQ-100 42221 | -1/Command | Spotted EQ-101 42224 | -1/Command | Destroyed EQ-086 42231 | -1/Command | Core integrity fell below 20% 42233 | -1/Command | Spotted EQ-109 42241 | -1/Command | Destroyed EQ-101 42246 | -1/Command | Destroyed EQ-109 42256 | -1/Command | Destroyed EQ-090 42257 | -1/Command | Attackers retreated from Command 42258 | *** | Fortifying 0b10! Last Messages --------------- 42243_ MAIN.C suffers critical hit (Burn). 42244_ MAIN.C knocked back. 42245_ MAIN.C suffers critical hit (Burn). 42246_ EQ-109 suffers critical hit (Meltdown). 42246_ Exp. Heat Sink melted. 42251_ Dropped Centrium Medium Armor Plating. 42252_ Acquired Prototype Protection. 42252_ Identified Centrium Light Armor Plating. 42256_ EQ-090 destroyed. 42257_ ALERT: Enemy forces retreating. MAIN.C: I admit your assistance was pivotal here. It looks like I was right to trust you. This attack appears to have been designed to merely test our defenses, although it was nearly effective enough to force me to take the conflict to the next level. Investigating the origins of these bots should be one of our highest priorities... [Achievement: Stronghold] [Achievement: By A Hair] Map ----- +----------------------------------------------------+ | ?????# ## #????????????????????????????????? | | ?????# ## #????????????????????????????????? | | ?????#"" ## #????????????????????????????????? | | ?????#"" ## #????????????????????????????????? | | ?????#"T ## ##???????????????????????????????? | | ?????#"" # #???????????????????????????????? | | ?????#"" + * #???????????????????????????????? | | ?????# # #???????????????????????????????? | | ?????# =# #???????????????????????????????? | | ?????####+####+####??????????????????????????????? | | ????????# ## #??????????????????????????????? | | ????????# ## #??????????????????????????????? | | ????????# ##! "" #??????????????????????????????? | | ######### ## "" #??????????????????????????????? | | ## T" #??????????????????????????????? | | + "" #??###########################?? | | # "" =#??#?????????????????????????#?? | | # #??#?#######################?#?? | | *# ! #??#?# """""" " % ##### | | ==# #??#?# " * #?#?? | | ===# #??#?# " " % !% ##### | | !% == # #??#?#! % "" ![!!=*[=!! % | | %% ######+#??#?# " |=!%*!= ![!]%%%% | | % ### #??#?# " !=!%!== %%%%%"%" | | = "## #??#?# !% "" %!!!%! % %%%##### | | %! "## #??#?#%@ " %!!=!!%%!! %=%#?#?? | | = ! #??#?#% % !!%===]%! !=%##### | | [!!= #??#?#%% ! =[=!%!%%! =%=#?#?? | | # !=% [ #??#?#*= * !%!!%=![[=%!%%!#?#?? | | # %!! ####?#!! %[ %=!===!! ]!! #?#?? | | # % %=% " #?#[ [ = !!%*!*%=[*!= #?#?? | | """" # =*!!!" #?# ! *!!*%[!!![%!%%!] #?#?? | | """" ! !%!==*#####%%M! ]%!=%![= !!]%! #?#?? | | """" =]!=!!% %[%!] !%= !*!=% *=*! #?#?? | | [ """" !!*!*%]*= %%%%[%== ! !**!% #?#?? | | *]%!=! %%%!%! !![= % " !!=% ! #?#?? | | = ] # =!"" ####! [=[ !!=" #?#?? | | # !! !!!= ###?# % *%! "="!" "#?#?? | | #####+### % ! #?#?# " %% #?#?? | | ??# ^##% # #?#?#######################?#?? | | ??# % # #?#?????????????????????????#?? | | ??# + #?###########################?? | | ??# %###### #?????????????????????????????? | | ??## ##????# #?????????????????????????????? | | ???# #?????# !!=#?????????????????????????????? | | ???# #?????# !==#?????????????????????????????? | | ???# #?????# != #?????????????????????????????? | | ???# #?????# #?????????????????????????????? | | ???# #?????# #?????????????????????????????? | | ???# ###???# = #?????????????????????????????? | +----------------------------------------------------+ Best States ------------- Heat Dissipation 126 Energy Generation 71 Energy Capacity 915 Matter Stores 300 Matter Capacity 550 Sight Range 24 Robot Scan Range 20 Terrain Scan Range 20 Terrain Scan Density 135 Jamming Range 22 Cloak Strength 9 EM Shielding 4 Armor Coverage 1200 Resistance: TH 20 Core Shielding 90 Point Defense Rating 480 Projectile Deflection 15 Weapon Cycling 25 Phase Shifting 15 Evasion (%) 87 Targeting Accuracy 30 Target Analysis 8 Core Analysis 15 Armor Integrity Analysis 50 Recoil Reduction 5 Kinecelleration 66 Offensive Hacking 50 Defensive Hacking 14 Authchip Count 3 Item Schematics ----------------- Hcp. Storage Unit | -10/Materials | Hacked Huge Storage Unit | -10/Materials | Hacked Imp. Flight Unit | -9/Materials | Scanalyzed Cesium-ion Thruster | -8/Materials | Scanalyzed Hyb. Antimatter Reactor | -6/Factory | Hacked Adv. Sensor Array | -6/Zion | Archive Adv. Shield Generator | -6/Zion | Archive Imp. Coolant Injector | -6/Zion | Archive Proton Cannon | -6/Zion | Archive Imp. Launcher Guidance Computer | -6/Zion | Archive Imp. Medium Treads | -6/Zion | Archive Centrium Wheel | -6/Zion | Archive Adv. Reaction Control System | -6/Zion | Archive Power Sword | -6/Zion | Archive Adv. System Restoration Module | -6/Zion | Archive Adv. Melee Analysis Suite | -6/Zion | Archive Enh. Gauss Cannon | -6/Zion | Archive Lgt. Angular Momentum Engine | -6/Zion | Archive Imp. Thermal Shield | -6/Zion | Archive Flexi-carbon Leg | -6/Zion | Archive Imp. KE Penetrator | -6/Zion | Archive Imp. Arc Thrower | -5/Zhirov | Free Exp. Optical Array | -5/Zhirov | Free Exp. Heat Sink | -5/Zhirov | Free Assault Drone Bay | -5/Zhirov | Free Cmb. Linear Gravjet | -4/Factory | Hacked Cld. Gravmag System | -4/Factory | Scanalyzed Quantum Reactor | -3/Testing | Hacked Imp. Matter Neutralizer | -2/Protoforge | Archive Enh. Hardcell Cannon | -1/Command | Hacked Robot Schematics ------------------ A-15 Conveyor | -6/Zion | Archive A-02 Transporter | -6/Zion | Archive Fabricated ------------ Cld. Gravmag System | x1 | -4/Factory | Authchip Cld. Gravmag System | x1 | -4/Factory | Authchip Cld. Gravmag System | x1 | -4/Factory | Authchip Cmb. Linear Gravjet | x2 | -4/Factory Cmb. Linear Gravjet | x2 | -3/Research | Authchip Repaired ---------- Seismic Detector | 25% | -9/Materials Imp. Flight Unit | 99% | -9/Materials | Broken Adv. Sensor Array | 4% | -4/Factory Imp. Cooling System | 1% | -4/Factory Cmb. Linear Gravjet | 68% | -2/Quarantine Imp. Medium Armor Plating | 50% | -2/Quarantine Cmb. Linear Gravjet | 5% | -1/Command Studied --------- Hvy. Assault Rifle | -9/Materials | Hacked Cesium-ion Thruster | -8/Materials | Hacked Lgt. Nuclear Core | -8/Materials | Hacked Alien Tech Used ----------------- Integrated Reactor Transdimensional Reconstructor Subatomic Replicator Concept Nanofilaments [Polyglass] Achievements -------------- About That Survey... All Kinds Of Bad News Bullet Installation By A Hair Drive-By Freedom! Hydra I'm Outta Here, Maybe Metal Spider Off Switch Physics Protects Power Plant Prodigal Son Some Acronyms Are Better Than Others Sprinter Stronghold Tune-up Worth The Wait Challenges ------------ None Game ------ Seed ReflectiveMeleeSuperbattery Manual? 0 Play Time 07:04:46 Cumulative 342.8 hours Start 2025.10.28 @ 18:23:25 End 2025.10.29 @ 18:01:39 Sessions 3 Manual Loads 0 Difficulty Rogue Special Mode None Game No. 238 Rogue 238 Adventurer 0 Explorer 0 Win Type 8 Total 22 Types 9/0/7/1/1/0/1/1/1/1 Lore% 82 Gallery% 78 Achievement% 61 Wizard Run 0 Options --------- Layout 1 ASCII 0 Keyboard 0 Movement Mouse Keybinds 0 Fullscreen 2 Font 24/Smallcaps Map View 50x35 Zoom Use 0% Tactical HUD 1 Map Filters NONE Filters NONE Steam 1 RUN: 2068f66f-b5c7-4a59-ae46-9329f7e1e169